Workbook

Sheet notes (hidden)
H2: =SUM(H3:H8) -> 0
C3: 600 | D3: 24 | E3: 600 | F3: 1000 | G3: =IF(Form!$D$4=D3,1,0) -> 0 | H3: =IF(G3=1,IF(OR(E3>Form!M$5,F3<Form!M$5),1,0),0) -> 0
C4: 800 | D4: 30 | E4: 800 | F4: 1200 | G4: =IF(Form!$D$4=D4,1,0) -> 0 | H4: =IF(G4=1,IF(OR(E4>Form!M$5,F4<Form!M$5),1,0),0) -> 0
C5: 1000 | D5: 36 | E5: 1000 | F5: 1400 | G5: =IF(Form!$D$4=D5,1,0) -> 0 | H5: =IF(G5=1,IF(OR(E5>Form!M$5,F5<Form!M$5),1,0),0) -> 0
C6: 1200 | D6: 42 | E6: 1200 | F6: 1600 | G6: =IF(Form!$D$4=D6,1,0) -> 0 | H6: =IF(G6=1,IF(OR(E6>Form!M$5,F6<Form!M$5),1,0),0) -> 0
C7: 1400 | D7: 48 | E7: 1400 | F7: 1800 | G7: =IF(Form!$D$4=D7,1,0) -> 0 | H7: =IF(G7=1,IF(OR(E7>Form!M$5,F7<Form!M$5),1,0),0) -> 0
C8: 1600 | D8: 60 | E8: 1600 | F8: 2000 | G8: =IF(Form!$D$4=D8,1,0) -> 0 | H8: =IF(G8=1,IF(OR(E8>Form!M$5,F8<Form!M$5),1,0),0) -> 0
C9: 1800
C10: 2000
D13: Total
B14: =Form!M5+Form!M6 -> 0 | E14: =E31 -> 0 | F14: =F31 -> 0 | G14: 0 | H14: 0 | I14: 0 | J14: 0 | K14: 0 | L14: =SUM(E14:K14) -> 0 | P14: 58
E15: =Form!C27 -> 65 | F15: =Form!E27 -> 75 | G15: =Form!G27 -> 85 | H15: =Form!I27 -> 95 | I15: =Form!K27 -> 100 | J15: =Form!M27 -> 105 | K15: =Form!O27 -> 115
A16: =C16+D16 -> 0 | B16: =P16 -> 0 | C16: =Form!A31 -> 0 | D16: =Form!B31 -> 0 | E16: =Form!C31 -> 0 | F16: =Form!E31 -> 0 | G16: =Form!G31 -> 0 | H16: =Form!I31 -> 0 | I16: =Form!K31 -> 0 | J16: =Form!M31 -> 0 | K16: =Form!O31 -> 0 | L16: =Form!$M$5+Form!M$6 -> 0 | M16: =IF(C16+D16=Form!M$5+Form!M$6,1,0) -> 1 | N16: =IF(A16<L16,1,0) -> 0 | O16: =IF(A16>L16,2,0) -> 0 | P16: =IF(AND(N16=1,N17=0),1,0)+IF(AND(O15=0,O16=2),2,0) -> 0
A17: =C17+D17 -> 0 | B17: =P17 -> 0 | C17: =C16 -> 0 | D17: =Form!B32 -> 0 | E17: =Form!C32 -> 0 | F17: =Form!E32 -> 0 | G17: =Form!G32 -> 0 | H17: =Form!I32 -> 0 | I17: =Form!K32 -> 0 | J17: =Form!M32 -> 0 | K17: =Form!O32 -> 0 | L17: =Form!$M$5+Form!M$6 -> 0 | M17: =IF(C17+D17=Form!M$5+Form!M$6,1,0) -> 1 | N17: =IF(A17<L17,1,0) -> 0 | O17: =IF(A17>L17,2,0) -> 0 | P17: =IF(AND(N17=1,N18=0),1,0)+IF(AND(O16=0,O17=2),2,0) -> 0
A18: 0 | B18: 0 | C18: =C17 -> 0 | D18: =Form!B33 -> 0 | E18: =Form!C33 -> 0 | F18: =Form!E33 -> 0 | G18: =Form!G33 -> 0 | H18: =Form!I33 -> 0 | I18: =Form!K33 -> 0 | J18: =Form!M33 -> 0 | K18: =Form!O33 -> 0 | L18: =Form!$M$5+Form!M$6 -> 0 | M18: =IF(C18+D18=Form!M$5+Form!M$6,1,0) -> 1 | N18: 0 | O18: =IF(A18>L18,2,0) -> 0 | P18: =IF(AND(N18=1,N19=0),1,0)+IF(AND(O17=0,O18=2),2,0) -> 0
A19: 0 | B19: 0 | C19: =C18 -> 0 | D19: =Form!B34 -> 0 | E19: =Form!C34 -> 0 | F19: =Form!E34 -> 0 | G19: =Form!G34 -> 0 | H19: =Form!I34 -> 0 | I19: =Form!K34 -> 0 | J19: =Form!M34 -> 0 | K19: =Form!O34 -> 0 | L19: =Form!$M$5+Form!M$6 -> 0 | M19: =IF(C19+D19=Form!M$5+Form!M$6,1,0) -> 1 | N19: 0 | O19: =IF(A19>L19,2,0) -> 0 | P19: =IF(AND(N19=1,N20=0),1,0)+IF(AND(O18=0,O19=2),2,0) -> 0
A20: 0 | B20: 0 | C20: =Form!A35 -> 0 | D20: =Form!B35 -> 0 | E20: =Form!C35 -> 0 | F20: =Form!E35 -> 0 | G20: =Form!G35 -> 0 | H20: =Form!I35 -> 0 | I20: =Form!K35 -> 0 | J20: =Form!M35 -> 0 | K20: =Form!O35 -> 0 | L20: =Form!$M$5+Form!M$6 -> 0 | M20: =IF(C20+D20=Form!M$5+Form!M$6,1,0) -> 1 | N20: 0 | O20: =IF(A20>L20,2,0) -> 0 | P20: =IF(AND(N20=1,N21=0),1,0)+IF(AND(O19=0,O20=2),2,0) -> 0
A21: 0 | B21: 0 | C21: =C20 -> 0 | D21: =Form!B36 -> 0 | E21: =Form!C36 -> 0 | F21: =Form!E36 -> 0 | G21: =Form!G36 -> 0 | H21: =Form!I36 -> 0 | I21: =Form!K36 -> 0 | J21: =Form!M36 -> 0 | K21: =Form!O36 -> 0 | L21: =Form!$M$5+Form!M$6 -> 0 | M21: =IF(C21+D21=Form!M$5+Form!M$6,1,0) -> 1 | N21: 0 | O21: =IF(A21>L21,2,0) -> 0 | P21: =IF(AND(N21=1,N22=0),1,0)+IF(AND(O20=0,O21=2),2,0) -> 0
A22: 0 | B22: 0 | C22: =C21 -> 0 | D22: =Form!B37 -> 0 | E22: =Form!C37 -> 0 | F22: =Form!E37 -> 0 | G22: =Form!G37 -> 0 | H22: =Form!I37 -> 0 | I22: =Form!K37 -> 0 | J22: =Form!M37 -> 0 | K22: =Form!O37 -> 0 | L22: =Form!$M$5+Form!M$6 -> 0 | M22: =IF(C22+D22=Form!M$5+Form!M$6,1,0) -> 1 | N22: 0 | O22: 0 | P22: 0
A23: 0 | B23: 0 | C23: =C22 -> 0 | D23: =Form!B38 -> 0 | E23: =Form!C38 -> 0 | F23: =Form!E38 -> 0 | G23: =Form!G38 -> 0 | H23: =Form!I38 -> 0 | I23: =Form!K38 -> 0 | J23: =Form!M38 -> 0 | K23: =Form!O38 -> 0 | L23: =Form!$M$5+Form!M$6 -> 0 | M23: =IF(C23+D23=Form!M$5+Form!M$6,1,0) -> 1 | N23: 0 | O23: 0 | P23: 0
A24: 0 | B24: 0 | C24: =Form!A39 -> 0 | D24: =Form!B39 -> 0 | E24: =Form!C39 -> 0 | F24: =Form!E39 -> 0 | G24: =Form!G39 -> 0 | H24: =Form!I39 -> 0 | I24: =Form!K39 -> 0 | J24: =Form!M39 -> 0 | K24: =Form!O39 -> 0 | L24: =Form!$M$5+Form!M$6 -> 0 | M24: =IF(C24+D24=Form!M$5+Form!M$6,1,0) -> 1 | N24: 0 | O24: 0 | P24: 0
A25: 0 | B25: 0 | C25: =C24 -> 0 | D25: =Form!B40 -> 0 | E25: =Form!C40 -> 0 | F25: =Form!E40 -> 0 | G25: =Form!G40 -> 0 | H25: =Form!I40 -> 0 | I25: =Form!K40 -> 0 | J25: =Form!M40 -> 0 | K25: =Form!O40 -> 0 | L25: =Form!$M$5+Form!M$6 -> 0 | M25: =IF(C25+D25=Form!M$5+Form!M$6,1,0) -> 1 | N25: 0 | O25: 0 | P25: 0
A26: 0 | B26: 0 | C26: =C25 -> 0 | D26: =Form!B41 -> 0 | E26: =Form!C41 -> 0 | F26: =Form!E41 -> 0 | G26: =Form!G41 -> 0 | H26: =Form!I41 -> 0 | I26: =Form!K41 -> 0 | J26: =Form!M41 -> 0 | K26: =Form!O41 -> 0 | L26: =Form!$M$5+Form!M$6 -> 0 | M26: =IF(C26+D26=Form!M$5+Form!M$6,1,0) -> 1 | N26: 0 | O26: 0 | P26: 0
A27: 0 | B27: 0 | C27: =C26 -> 0 | D27: =Form!B42 -> 0 | E27: =Form!C42 -> 0 | F27: =Form!E42 -> 0 | G27: =Form!G42 -> 0 | H27: =Form!I42 -> 0 | I27: =Form!K42 -> 0 | J27: =Form!M42 -> 0 | K27: =Form!O42 -> 0 | L27: =Form!$M$5+Form!M$6 -> 0 | M27: =IF(C27+D27=Form!M$5+Form!M$6,1,0) -> 1 | N27: 0 | O27: 0 | P27: 0
A28: 0 | B28: =SUM(B16:B27) -> 0
F29: =IF(AND(F15>Form!$M$4,E15<Form!$M$4),2,0) -> 0 | G29: =IF(AND(G15>Form!$M$4,F15<Form!$M$4),2,0) -> 0 | H29: =IF(AND(H15>Form!$M$4,G15<Form!$M$4),2,0) -> 0 | I29: =IF(AND(I15>Form!$M$4,H15<Form!$M$4),2,0) -> 0 | J29: =IF(AND(J15>Form!$M$4,I15<Form!$M$4),2,0) -> 0 | K29: =IF(AND(K15>Form!$M$4,J15<Form!$M$4),2,0) -> 0
C30: =HLOOKUP(1,E14:K15,2,FALSE) ->  | E30: =IF(F29=2,1,0) -> 0 | F30: =IF(G29=2,1,0) -> 0 | G30: 0 | H30: 0 | I30: 0 | J30: 0 | K30: 0
C31: =HLOOKUP(2,E14:K15,2,FALSE) ->  | E31: =SUM(E29:E30) -> 0 | F31: 0 | G31: 0 | H31: 0 | I31: 0 | J31: 0 | K31: 0
B32: =(VLOOKUP(1,B14:K27,3,FALSE)) ->  | C32: =IF(ISERROR(B32),0,B32) -> 0 | E32: =(C34-C35)/(C32-C33)*(Form!$M$6-C33)+C35 ->  | F32: =(C36-C37)/(C32-C33)*(Form!M6-C33)+C37 -> 
B33: =VLOOKUP(2,B14:K27,3,FALSE) ->  | C33: =IF(ISERROR(B33),0,B33) -> 0 | E33: =IF(AND(B28=0,L14=3),VLOOKUP(Form!$M$5+Form!$M$6,notes!A14:K27,MATCH(1,notes!A14:K14,FALSE),FALSE),0) -> 0 | F33: =IF(AND(B28=0,L14=3),VLOOKUP(Form!$M$5+Form!$M$6,notes!A14:K27,MATCH(2,notes!A14:K14,FALSE),FALSE),0) -> 0 | I33: exactly
B34: =VLOOKUP(1,B14:K27,MATCH(1,B14:K14,FALSE),FALSE) ->  | C34: =MIN(B34,B36) ->  | E34: =IF(ISERROR(E32),E33,E32) -> 0 | F34: =IF(ISERROR(F32),F33,F32) -> 0 | I34: x | J34: y | K34: err1 | L34: err2 | M34: err3 | N34: ans
B35: =VLOOKUP(2,B14:K27,MATCH(1,B14:K14,FALSE),FALSE) ->  | C35: =MAX(B35,B37) ->  | E35: =MIN(E34:F34) -> 0 | F35: =MAX(E34:F34) -> 0 | I35: y | J35: y | K35: =IF(ISERROR(VLOOKUP(Form!$M$5+Form!$M$6,notes!A15:K27,MATCH(Form!$M$4,notes!A15:K15,FALSE),FALSE)),0,VLOOKUP(Form!$M$5+Form!$M$6,notes!A15:K27,MATCH(Form!$M$4,notes!A15:K15,FALSE),FALSE)) -> 0 | N35: =SUM(K35:M35) -> 0
B36: =VLOOKUP(1,B14:K27,MATCH(2,B14:K14,FALSE),FALSE) ->  | C36: =MAX(B36,B34) ->  | E36: =(E35-F35)/(C31-C30)*(Form!$M$4-C30)+F35 ->  | I36: y | J36: n | N36: =SUM(K36:M36) -> 0
B37: =VLOOKUP(2,B14:K27,MATCH(2,B14:K14,FALSE),FALSE) ->  | C37: =MIN(B35,B37) ->  | I37: n | J37: n | K37: =IF(OR(E36>100000,E36<=0),0,E36) ->  | L37: =IF(K37<>0,0,MIN(E32:F32)) ->  | M37: =IF(AND(L37=0,K37=0),C34,0) ->  | N37: =SUM(K37:M37) -> 
N38: =IF(ISERROR(N37),N35,N37) -> 0
A41: sens | E41: =E58 -> 0 | F41: =F58 -> 0 | G41: 0 | H41: 0 | I41: 0 | J41: 0 | K41: 0 | L41: =SUM(E41:K41) -> 0
E42: =E15 -> 65 | F42: =F15 -> 75 | G42: 85 | H42: 95 | I42: 100 | J42: 105 | K42: 115
A43: =C43+D43 -> 0 | B43: =P43 -> 0 | C43: =C16 -> 0 | D43: =D16 -> 0 | E43: =Form!D31 -> 0 | F43: =Form!F31 -> 0 | G43: =Form!H31 -> 0 | H43: =Form!J31 -> 0 | I43: =Form!L31 -> 0 | J43: =Form!N31 -> 0 | K43: =Form!P31 -> 0 | L43: =Form!$M$5+Form!M$6 -> 0 | M43: =IF(C43+D43=Form!M$5+Form!M$6,1,0) -> 1 | N43: =IF(A43<L43,1,0) -> 0 | O43: =IF(A43>L43,2,0) -> 0 | P43: =IF(AND(N43=1,N44=0),1,0)+IF(AND(O42=0,O43=2),2,0) -> 0
A44: =C44+D44 -> 0 | B44: =P44 -> 0 | C44: =C17 -> 0 | D44: =D17 -> 0 | E44: =Form!D32 -> 0 | F44: =Form!F32 -> 0 | G44: =Form!H32 -> 0 | H44: =Form!J32 -> 0 | I44: =Form!L32 -> 0 | J44: =Form!N32 -> 0 | K44: =Form!P32 -> 0 | L44: =Form!$M$5+Form!M$6 -> 0 | M44: =IF(C44+D44=Form!M$5+Form!M$6,1,0) -> 1 | N44: =IF(A44<L44,1,0) -> 0 | O44: =IF(A44>L44,2,0) -> 0 | P44: =IF(AND(N44=1,N45=0),1,0)+IF(AND(O43=0,O44=2),2,0) -> 0
A45: =C45+D45 -> 0 | B45: 0 | C45: 0 | D45: 0 | E45: =Form!D33 -> 0 | F45: =Form!F33 -> 0 | G45: =Form!H33 -> 0 | H45: =Form!J33 -> 0 | I45: =Form!L33 -> 0 | J45: =Form!N33 -> 0 | K45: =Form!P33 -> 0 | L45: =Form!$M$5+Form!M$6 -> 0 | M45: =IF(C45+D45=Form!M$5+Form!M$6,1,0) -> 1 | N45: 0 | O45: =IF(A45>L45,2,0) -> 0 | P45: =IF(AND(N45=1,N46=0),1,0)+IF(AND(O44=0,O45=2),2,0) -> 0
A46: 0 | B46: 0 | C46: 0 | D46: 0 | E46: =Form!D34 -> 0 | F46: =Form!F34 -> 0 | G46: =Form!H34 -> 0 | H46: =Form!J34 -> 0 | I46: =Form!L34 -> 0 | J46: =Form!N34 -> 0 | K46: =Form!P34 -> 0 | L46: =Form!$M$5+Form!M$6 -> 0 | M46: =IF(C46+D46=Form!M$5+Form!M$6,1,0) -> 1 | N46: 0 | O46: =IF(A46>L46,2,0) -> 0 | P46: =IF(AND(N46=1,N47=0),1,0)+IF(AND(O45=0,O46=2),2,0) -> 0
A47: 0 | B47: 0 | C47: 0 | D47: 0 | E47: =Form!D35 -> 0 | F47: =Form!F35 -> 0 | G47: =Form!H35 -> 0 | H47: =Form!J35 -> 0 | I47: =Form!L35 -> 0 | J47: =Form!N35 -> 0 | K47: =Form!P35 -> 0 | L47: =Form!$M$5+Form!M$6 -> 0 | M47: =IF(C47+D47=Form!M$5+Form!M$6,1,0) -> 1 | N47: 0 | O47: =IF(A47>L47,2,0) -> 0 | P47: =IF(AND(N47=1,N48=0),1,0)+IF(AND(O46=0,O47=2),2,0) -> 0
A48: 0 | B48: 0 | C48: 0 | D48: 0 | E48: =Form!D36 -> 0 | F48: =Form!F36 -> 0 | G48: =Form!H36 -> 0 | H48: =Form!J36 -> 0 | I48: =Form!L36 -> 0 | J48: =Form!N36 -> 0 | K48: =Form!P36 -> 0 | L48: =Form!$M$5+Form!M$6 -> 0 | M48: =IF(C48+D48=Form!M$5+Form!M$6,1,0) -> 1 | N48: 0 | O48: =IF(A48>L48,2,0) -> 0 | P48: =IF(AND(N48=1,N49=0),1,0)+IF(AND(O47=0,O48=2),2,0) -> 0
A49: 0 | B49: 0 | C49: 0 | D49: 0 | E49: =Form!D37 -> 0 | F49: =Form!F37 -> 0 | G49: =Form!H37 -> 0 | H49: =Form!J37 -> 0 | I49: =Form!L37 -> 0 | J49: =Form!N37 -> 0 | K49: =Form!P37 -> 0 | L49: =Form!$M$5+Form!M$6 -> 0 | M49: =IF(C49+D49=Form!M$5+Form!M$6,1,0) -> 1 | N49: 0 | O49: 0 | P49: 0
A50: 0 | B50: 0 | C50: 0 | D50: 0 | E50: =Form!D38 -> 0 | F50: =Form!F38 -> 0 | G50: =Form!H38 -> 0 | H50: =Form!J38 -> 0 | I50: =Form!L38 -> 0 | J50: =Form!N38 -> 0 | K50: =Form!P38 -> 0 | L50: =Form!$M$5+Form!M$6 -> 0 | M50: =IF(C50+D50=Form!M$5+Form!M$6,1,0) -> 1 | N50: 0 | O50: 0 | P50: 0
A51: 0 | B51: 0 | C51: 0 | D51: 0 | E51: =Form!D39 -> 0 | F51: =Form!F39 -> 0 | G51: =Form!H39 -> 0 | H51: =Form!J39 -> 0 | I51: =Form!L39 -> 0 | J51: =Form!N39 -> 0 | K51: =Form!P39 -> 0 | L51: =Form!$M$5+Form!M$6 -> 0 | M51: =IF(C51+D51=Form!M$5+Form!M$6,1,0) -> 1 | N51: 0 | O51: 0 | P51: 0
A52: 0 | B52: 0 | C52: 0 | D52: 0 | E52: =Form!D40 -> 0 | F52: =Form!F40 -> 0 | G52: =Form!H40 -> 0 | H52: =Form!J40 -> 0 | I52: =Form!L40 -> 0 | J52: =Form!N40 -> 0 | K52: =Form!P40 -> 0 | L52: =Form!$M$5+Form!M$6 -> 0 | M52: =IF(C52+D52=Form!M$5+Form!M$6,1,0) -> 1 | N52: 0 | O52: 0 | P52: 0
A53: 0 | B53: 0 | C53: 0 | D53: 0 | E53: =Form!D41 -> 0 | F53: =Form!F41 -> 0 | G53: =Form!H41 -> 0 | H53: =Form!J41 -> 0 | I53: =Form!L41 -> 0 | J53: =Form!N41 -> 0 | K53: =Form!P41 -> 0 | L53: =Form!$M$5+Form!M$6 -> 0 | M53: =IF(C53+D53=Form!M$5+Form!M$6,1,0) -> 1 | N53: 0 | O53: 0 | P53: 0
A54: 0 | B54: 0 | C54: 0 | D54: 0 | E54: =Form!D42 -> 0 | F54: =Form!F42 -> 0 | G54: =Form!H42 -> 0 | H54: =Form!J42 -> 0 | I54: =Form!L42 -> 0 | J54: =Form!N42 -> 0 | K54: =Form!P42 -> 0 | L54: =Form!$M$5+Form!M$6 -> 0 | M54: =IF(C54+D54=Form!M$5+Form!M$6,1,0) -> 1 | N54: 0 | O54: 0 | P54: 0
A55: 0 | B55: =SUM(B43:B54) -> 0
F56: =IF(AND(F42>Form!$M$4,E42<Form!$M$4),2,0) -> 0 | G56: =IF(AND(G42>Form!$M$4,F42<Form!$M$4),2,0) -> 0 | H56: =IF(AND(H42>Form!$M$4,G42<Form!$M$4),2,0) -> 0 | I56: =IF(AND(I42>Form!$M$4,H42<Form!$M$4),2,0) -> 0 | J56: =IF(AND(J42>Form!$M$4,I42<Form!$M$4),2,0) -> 0 | K56: =IF(AND(K42>Form!$M$4,J42<Form!$M$4),2,0) -> 0
C57: =HLOOKUP(1,E41:K42,2,FALSE) ->  | E57: =IF(F56=2,1,0) -> 0 | F57: =IF(G56=2,1,0) -> 0 | G57: 0 | H57: 0 | I57: 0 | J57: 0 | K57: 0
C58: =HLOOKUP(2,E41:K42,2,FALSE) ->  | E58: =SUM(E56:E57) -> 0 | F58: 0 | G58: 0 | H58: 0 | I58: 0 | J58: 0 | K58: 0
B59: =(VLOOKUP(1,B41:K54,3,FALSE)) ->  | C59: =IF(ISERROR(B59),0,B59) -> 0 | E59: =(C61-C62)/(C59-C60)*(Form!$M$6-C60)+C62 ->  | F59: =(C63-C64)/(C59-C60)*(Form!M6-C60)+C64 -> 
B60: =VLOOKUP(2,B41:K54,3,FALSE) ->  | C60: =IF(ISERROR(B60),0,B60) -> 0 | E60: =IF(AND(B55=0,L41=3),VLOOKUP(Form!$M$5+Form!$M$6,notes!A41:K54,MATCH(1,notes!A41:K41,FALSE),FALSE),0) -> 0 | F60: =IF(AND(B55=0,L41=3),VLOOKUP(Form!$M$5+Form!$M$6,notes!A41:K54,MATCH(2,notes!A41:K41,FALSE),FALSE),0) -> 0 | I60: exactly
B61: =VLOOKUP(1,B41:K54,MATCH(1,B41:K41,FALSE),FALSE) ->  | C61: =MIN(B61,B63) ->  | E61: =IF(ISERROR(E59),E60,E59) -> 0 | F61: =IF(ISERROR(F59),F60,F59) -> 0 | I61: x | J61: y | K61: err1 | L61: err2 | M61: err3 | N61: ans
B62: =VLOOKUP(2,B41:K54,MATCH(1,B41:K41,FALSE),FALSE) ->  | C62: =MAX(B62,B64) ->  | E62: =MIN(E61:F61) -> 0 | F62: =MAX(E61:F61) -> 0 | I62: y | J62: y | K62: =IF(ISERROR(VLOOKUP(Form!$M$5+Form!$M$6,notes!A42:K54,MATCH(Form!$M$4,notes!A42:K42,FALSE),FALSE)),0,VLOOKUP(Form!$M$5+Form!$M$6,notes!A42:K54,MATCH(Form!$M$4,notes!A42:K42,FALSE),FALSE)) -> 0 | N62: =SUM(K62:M62) -> 0
B63: =VLOOKUP(1,B41:K54,MATCH(2,B41:K41,FALSE),FALSE) ->  | C63: =MAX(B63,B61) ->  | E63: =(E62-F62)/(C58-C57)*(Form!$M$4-C57)+F62 ->  | I63: y | J63: n | N63: =SUM(K63:M63) -> 0
B64: =VLOOKUP(2,B41:K54,MATCH(2,B41:K41,FALSE),FALSE) ->  | C64: =MIN(B62,B64) ->  | I64: n | J64: n | K64: =IF(OR(E63>100000,E63<=0),0,E63) ->  | L64: =IF(K64<>0,0,MIN(E59:F59)) ->  | M64: =IF(AND(L64=0,K64=0),C61,0) ->  | N64: =SUM(K64:M64) -> 
B65: =VLOOKUP(Form!M32+Form!M33,A41:K54,MATCH(2,A41:K41,FALSE),FALSE) ->  | N65: =IF(ISERROR(N64),N62,N64) -> 0

Sheet Options (hidden)
A1: 24VNA9

Sheet Calcs (hidden)
D1: Condenser :
D2: ADP Evaporator:
D3: Condenser Entering Air Temperature: | E3: 100 | F3: (°F) Dry Bulb, 85°F to 115°F
D4: Evaporator Air Flow: | E4: 1265 | F4: CFM
D5: Entering Evaporator Air (DB): | E5: 77.5 | F5: (°F) Dry Bulb
D6: Entering Evaporator Air (WB): | E6: 60.6 | F6: (°F) Wet Bulb, 63°F to 71°F
A9: Total
A10: 28.55 | B10: 1200 60.6
B12: Diff 200 | C12: =A10-A14 -> 0.308 | D12: Diff 1 cfm | E12: =C12/200 -> 0.00154 | F12: 1265 total | G12: =A10-(65*E12) -> 28.4499
A14: 28.242 | B14: 1400 60.6
A16: Sens
A17: 25.32 | B17: 1200 60.6
B19: Diff 200 | C19: =A17-A21 -> 0.5544 | D19: Diff 1 cfm | E19: =C19/200 -> 0.002772 | F19: 1265 Sens | G19: =A17-(65*E19) -> 25.13982
A21: 24.7656 | B21: 1400 60.6

Sheet 24VNA9_23 (hidden)
A2: 24VNA9_23 | C2: 23=24A
A3: Evaporator Air Flow | C3: Condenser Entering Air Temperature ˚F
A4: 825 | B4: CFM | C4: 65 | E4: 75 | G4: 85 | I4: 95 | K4: 100 | M4: 105 | O4: 115
A5: Evap. Air °F DB | B5: EWB† ˚F | C5: Capacity Mbtuh | E5: Capacity Mbtuh | G5: Capacity Mbtuh | I5: Capacity Mbtuh | K5: Capacity Mbtuh | M5: Capacity Mbtuh | O5: Capacity Mbtuh
C6: Total | D6: Sens. | E6: Total | F6: Sens. | G6: Total | H6: Sens. | I6: Total | J6: Sens. | K6: Total | L6: Sens. | M6: Total | N6: Sens. | O6: Total | P6: Sens.
R7: Total Factors | Y7: Sens. % | AF7: IDB Adj | AM7: Sens Calc
A8: 75 | B8: 72 | C8: =R8*$I$17 -> 29.26 | D8: =IF(AM8>C8,C8,AM8) -> 12.02 | E8: =S8*$I$17 -> 27.98 | F8: =IF(AN8>E8,E8,AN8) -> 11.54 | G8: =T8*$I$17 -> 26.67 | H8: =IF(AO8>G8,G8,AO8) -> 11.04 | I8: =U8*$I$17 -> 25.33 | J8: =IF(AP8>I8,I8,AP8) -> 10.54 | K8: =V8*$I$17 -> 24.675 | L8: =IF(AQ8>K8,K8,AQ8) -> 10.295 | M8: =W8*$I$17 -> 24.02 | N8: =IF(AR8>M8,M8,AR8) -> 10.05 | O8: =X8*$I$17 -> 22.6 | P8: =IF(AS8>O8,O8,AS8) -> 9.53 | R8: 1.272173913 | S8: 1.216521739 | T8: 1.159565217 | U8: 1.101304348 | V8: 1.072826087 | W8: 1.044347826 | X8: 0.9826086957 | Y8: 0.4107997266 | Z8: 0.4124374553 | AA8: 0.4139482565 | AB8: 0.4161073826 | AC8: 0.4172239108 | AD8: 0.4184013322 | AE8: 0.4216814159 | AF8: 1 | AG8: 1 | AH8: 1 | AI8: 1 | AJ8: 1 | AK8: 1 | AL8: 1 | AM8: =Y8*C8*AF8 -> 12.02 | AN8: =Z8*E8*AG8 -> 11.54 | AO8: =AA8*G8*AH8 -> 11.04 | AP8: =AB8*I8*AI8 -> 10.54 | AQ8: =AC8*K8*AJ8 -> 10.295 | AR8: =AD8*M8*AK8 -> 10.05 | AS8: =AE8*O8*AL8 -> 9.53
B9: 67 | C9: 26.73 | D9: 15.95 | E9: 25.55 | F9: =IF(AN9>E9,E9,AN9) -> 15.41 | G9: 24.34 | H9: =IF(AO9>G9,G9,AO9) -> 14.86 | I9: 23.1 | J9: =IF(AP9>I9,I9,AP9) -> 14.31 | K9: 22.49 | L9: =IF(AQ9>K9,K9,AQ9) -> 14.035 | M9: 21.88 | N9: =IF(AR9>M9,M9,AR9) -> 13.76 | O9: 20.56 | P9: =IF(AS9>O9,O9,AS9) -> 13.19 | R9: 1.162173913 | S9: 1.110869565 | T9: 1.05826087 | U9: 1.004347826 | V9: 0.977826087 | W9: 0.9513043478 | X9: 0.8939130435 | Y9: 0.5967078189 | Z9: 0.6031311155 | AA9: 0.6105176664 | AB9: 0.6194805195 | AC9: 0.6240551356 | AD9: 0.6288848263 | AE9: 0.641536965 | AF9: 1 | AG9: 1 | AH9: 1 | AI9: 1 | AJ9: 1 | AK9: 1 | AL9: 1 | AM9: =Y9*C9*AF9 -> 15.95 | AN9: =Z9*E9*AG9 -> 15.41 | AO9: =AA9*G9*AH9 -> 14.86 | AP9: =AB9*I9*AI9 -> 14.31 | AQ9: =AC9*K9*AJ9 -> 14.035 | AR9: =AD9*M9*AK9 -> 13.76 | AS9: =AE9*O9*AL9 -> 13.19
B10: 63 | C10: 24.85 | D10: 19.01 | E10: 23.74 | F10: 18.44 | G10: 22.61 | H10: 17.85 | I10: 21.44 | J10: 17.25 | K10: 20.865 | L10: 16.955 | M10: 20.29 | N10: 16.66 | O10: 19.06 | P10: 16.04 | R10: 1.080434783 | S10: 1.032173913 | T10: 0.9830434783 | U10: 0.932173913 | V10: 0.907173913 | W10: 0.882173913 | X10: 0.8286956522 | Y10: 0.7649899396 | Z10: 0.7767481045 | AA10: 0.7894736842 | AB10: 0.8045708955 | AC10: 0.8126048406 | AD10: 0.821094135 | AE10: 0.8415529906 | AF10: 1 | AG10: 1 | AH10: 1 | AI10: 1 | AJ10: 1 | AK10: 1 | AL10: 1 | AM10: 19.01 | AN10: 18.44 | AO10: 17.85 | AP10: 17.25 | AQ10: 16.955 | AR10: 16.66 | AS10: 16.04
B11: 57 | C11: 22.78 | D11: 22.78 | E11: 21.89 | F11: 21.89 | G11: 20.97 | H11: 20.97 | I11: 20.04 | J11: 20.04 | K11: 19.565 | L11: 19.565 | M11: 19.09 | N11: 19.09 | O11: 18.1 | P11: 18.1 | R11: 0.9904347826 | S11: 0.9517391304 | T11: 0.9117391304 | U11: 0.8713043478 | V11: 0.8506521739 | W11: 0.83 | X11: 0.7869565217 | Y11: 1 | Z11: 1 | AA11: 1 | AB11: 1 | AC11: 1 | AD11: 1 | AE11: 1 | AF11: 1 | AG11: 1 | AH11: 1 | AI11: 1 | AJ11: 1 | AK11: 1 | AL11: 1 | AM11: 22.78 | AN11: 21.89 | AO11: 20.97 | AP11: 20.04 | AQ11: 19.565 | AR11: 19.09 | AS11: 18.1
A12: 77.5 | B12: 72 | C12: 29.165 | D12: 13.93 | E12: 27.89 | F12: 13.425 | G12: 26.58 | H12: 12.905 | I12: 25.24 | J12: 12.385 | K12: 24.5875 | L12: 12.13 | M12: 23.935 | N12: 11.875 | O12: 22.52 | P12: 11.335 | R12: 1.268043478 | S12: 1.212608696 | T12: 1.155652174 | U12: 1.097391304 | V12: 1.069021739 | W12: 1.040652174 | X12: 0.9791304348 | Y12: 0.477627293 | Z12: 0.4813553245 | AA12: 0.4855154251 | AB12: 0.4906893819 | AC12: 0.4933401118 | AD12: 0.4961353666 | AE12: 0.503330373 | AF12: 1 | AG12: 1 | AH12: 1 | AI12: 1 | AJ12: 1 | AK12: 1 | AL12: 1 | AM12: 13.93 | AN12: 13.425 | AO12: 12.905 | AP12: 12.385 | AQ12: 12.13 | AR12: 11.875 | AS12: 11.335
B13: 67 | C13: 26.675 | D13: 17.84 | E13: 25.5 | F13: 17.28 | G13: 24.29 | H13: 16.71 | I13: 23.05 | J13: 16.135 | K13: 22.4425 | L13: 15.8525 | M13: 21.835 | N13: 15.57 | O13: 20.52 | P13: 14.975 | R13: 1.159782609 | S13: 1.108695652 | T13: 1.056086957 | U13: 1.002173913 | V13: 0.9757608696 | W13: 0.9493478261 | X13: 0.892173913 | Y13: 0.6687910028 | Z13: 0.6776470588 | AA13: 0.6879374228 | AB13: 0.7 | AC13: 0.7063606996 | AD13: 0.7130753378 | AE13: 0.7297758285 | AF13: 1 | AG13: 1 | AH13: 1 | AI13: 1 | AJ13: 1 | AK13: 1 | AL13: 1 | AM13: 17.84 | AN13: 17.28 | AO13: 16.71 | AP13: 16.135 | AQ13: 15.8525 | AR13: 15.57 | AS13: 14.975
B14: 63 | C14: 24.85 | D14: 20.89 | E14: 23.745 | F14: 20.295 | G14: 22.62 | H14: 19.68 | I14: 21.465 | J14: 19.05 | K14: 20.8975 | L14: 18.735 | M14: 20.33 | N14: 18.42 | O14: 19.16 | P14: 17.65 | R14: 1.080434783 | S14: 1.032391304 | T14: 0.9834782609 | U14: 0.9332608696 | V14: 0.9085869565 | W14: 0.8839130435 | X14: 0.8330434783 | Y14: 0.8406438632 | Z14: 0.8547062539 | AA14: 0.8700265252 | AB14: 0.8874912648 | AC14: 0.8965187223 | AD14: 0.9060501722 | AE14: 0.9211899791 | AF14: 1 | AG14: 1 | AH14: 1 | AI14: 1 | AJ14: 1 | AK14: 1 | AL14: 1 | AM14: 20.89 | AN14: 20.295 | AO14: 19.68 | AP14: 19.05 | AQ14: 18.735 | AR14: 18.42 | AS14: 17.65
B15: 57 | C15: 23.44 | D15: 23.44 | E15: 22.535 | F15: 22.535 | G15: 21.6 | H15: 21.6 | I15: 20.645 | J15: 20.645 | K15: 20.165 | L15: 20.165 | M15: 19.685 | N15: 19.685 | O15: 18.665 | P15: 18.665 | R15: 1.019130435 | S15: 0.9797826087 | T15: 0.9391304348 | U15: 0.8976086957 | V15: 0.8767391304 | W15: 0.8558695652 | X15: 0.8115217391 | Y15: 1 | Z15: 1 | AA15: 1 | AB15: 1 | AC15: 1 | AD15: 1 | AE15: 1 | AF15: 1 | AG15: 1 | AH15: 1 | AI15: 1 | AJ15: 1 | AK15: 1 | AL15: 1 | AM15: 23.44 | AN15: 22.535 | AO15: 21.6 | AP15: 20.645 | AQ15: 20.165 | AR15: 19.685 | AS15: 18.665
A16: 80 | B16: 72 | C16: 29.07 | D16: 15.84 | E16: 27.8 | F16: 15.31 | G16: 26.49 | H16: 14.77 | I16: 25.15 | J16: 14.23 | K16: 24.5 | L16: 13.965 | M16: 23.85 | N16: 13.7 | O16: 22.44 | P16: 13.14 | R16: 1.263913043 | S16: 1.208695652 | T16: 1.15173913 | U16: 1.093478261 | V16: 1.065217391 | W16: 1.036956522 | X16: 0.9756521739 | Y16: 0.5448916409 | Z16: 0.5507194245 | AA16: 0.5575688939 | AB16: 0.565805169 | AC16: 0.57 | AD16: 0.5744234801 | AE16: 0.5855614973 | AF16: 1 | AG16: 1 | AH16: 1 | AI16: 1 | AJ16: 1 | AK16: 1 | AL16: 1 | AM16: 15.84 | AN16: 15.31 | AO16: 14.77 | AP16: 14.23 | AQ16: 13.965 | AR16: 13.7 | AS16: 13.14
B17: 67 | C17: 26.62 | D17: 19.73 | E17: 25.45 | F17: 19.15 | G17: 24.24 | H17: 18.56 | I17: 23 | J17: 17.96 | K17: 22.395 | L17: 17.67 | M17: 21.79 | N17: 17.38 | O17: 20.48 | P17: 16.76 | R17: 1.157391304 | S17: 1.106521739 | T17: 1.053913043 | U17: 1 | V17: 0.9736956522 | W17: 0.9473913043 | X17: 0.8904347826 | Y17: 0.7411720511 | Z17: 0.7524557957 | AA17: 0.7656765677 | AB17: 0.7808695652 | AC17: 0.7890154052 | AD17: 0.7976135842 | AE17: 0.818359375 | AF17: 1 | AG17: 1 | AH17: 1 | AI17: 1 | AJ17: 1 | AK17: 1 | AL17: 1 | AM17: 19.73 | AN17: 19.15 | AO17: 18.56 | AP17: 17.96 | AQ17: 17.67 | AR17: 17.38 | AS17: 16.76
B18: 63 | C18: 24.85 | D18: 22.77 | E18: 23.75 | F18: 22.15 | G18: 22.63 | H18: 21.51 | I18: =U18*$I$17 -> 21.49 | J18: 20.85 | K18: 20.93 | L18: 20.515 | M18: 20.37 | N18: 20.18 | O18: 19.26 | P18: 19.26 | R18: 1.080434783 | S18: 1.032608696 | T18: 0.9839130435 | U18: 0.9343478261 | V18: 0.91 | W18: 0.8856521739 | X18: 0.8373913043 | Y18: 0.9162977867 | Z18: 0.9326315789 | AA18: 0.950508175 | AB18: 0.9702187064 | AC18: 0.9801720019 | AD18: 0.9906725577 | AE18: 1 | AF18: 1 | AG18: 1 | AH18: 1 | AI18: 1 | AJ18: 1 | AK18: 1 | AL18: 1 | AM18: 22.77 | AN18: 22.15 | AO18: 21.51 | AP18: 20.85 | AQ18: 20.515 | AR18: 20.18 | AS18: 19.26
B19: 57 | C19: 24.1 | D19: 24.1 | E19: 23.18 | F19: 23.18 | G19: 22.23 | H19: 22.23 | I19: =U19*$I$17 -> 21.25 | J19: 21.25 | K19: 20.765 | L19: 20.765 | M19: 20.28 | N19: 20.28 | O19: 19.23 | P19: 19.23 | R19: 1.047826087 | S19: 1.007826087 | T19: 0.9665217391 | U19: 0.9239130435 | V19: 0.902826087 | W19: 0.8817391304 | X19: 0.8360869565 | Y19: 1 | Z19: 1 | AA19: 1 | AB19: 1 | AC19: 1 | AD19: 1 | AE19: 1 | AF19: 1 | AG19: 1 | AH19: 1 | AI19: 1 | AJ19: 1 | AK19: 1 | AL19: 1 | AM19: 24.1 | AN19: 23.18 | AO19: 22.23 | AP19: 21.25 | AQ19: 20.765 | AR19: 20.28 | AS19: 19.23

Sheet 24VNA9_24 (hidden)
A2: 24VNA9_24 | C2: 24=24B
A3: Evaporator Air Flow | C3: Condenser Entering Air Temperature ˚F
A4: 825 | B4: CFM | C4: 65 | E4: 75 | G4: 85 | I4: 95 | K4: 100 | M4: 105 | O4: 115
A5: Evap. Air °F DB | B5: EWB† ˚F | C5: Capacity Mbtuh | E5: Capacity Mbtuh | G5: Capacity Mbtuh | I5: Capacity Mbtuh | K5: Capacity Mbtuh | M5: Capacity Mbtuh | O5: Capacity Mbtuh
C6: Total | D6: Sens. | E6: Total | F6: Sens. | G6: Total | H6: Sens. | I6: Total | J6: Sens. | K6: Total | L6: Sens. | M6: Total | N6: Sens. | O6: Total | P6: Sens.
R7: Total Factors | Y7: Sens. % | AF7: IDB Adj | AM7: Sens Calc
A8: 75 | B8: 72 | C8: =R8*$I$17 -> 29.71791667 | D8: =IF(AM8>C8,C8,AM8) -> 12.19958333 | E8: =S8*$I$17 -> 28.28041667 | F8: =IF(AN8>E8,E8,AN8) -> 11.65333333 | G8: =T8*$I$17 -> 26.83333333 | H8: =IF(AO8>G8,G8,AO8) -> 11.11666667 | I8: =U8*$I$17 -> 25.3575 | J8: =IF(AP8>I8,I8,AP8) -> 10.56083333 | K8: =V8*$I$17 -> 24.67229167 | L8: =IF(AQ8>K8,K8,AQ8) -> 10.306875 | M8: =W8*$I$17 -> 23.98708333 | N8: =IF(AR8>M8,M8,AR8) -> 10.05291667 | O8: =X8*$I$17 -> 22.45375 | P8: =IF(AS8>O8,O8,AS8) -> 9.4875 | R8: 1.292083333 | S8: 1.229583333 | T8: 1.166666667 | U8: 1.1025 | V8: 1.072708333 | W8: 1.042916667 | X8: 0.97625 | Y8: 0.4105127378 | Z8: 0.4120637072 | AA8: 0.4142857143 | AB8: 0.4164777022 | AC8: 0.4177510196 | AD8: 0.4190970835 | AE8: 0.4225352113 | AF8: 1 | AG8: 1 | AH8: 1 | AI8: 1 | AJ8: 1 | AK8: 1 | AL8: 1 | AM8: =Y8*C8*AF8 -> 12.19958333 | AN8: =Z8*E8*AG8 -> 11.65333333 | AO8: =AA8*G8*AH8 -> 11.11666667 | AP8: =AB8*I8*AI8 -> 10.56083333 | AQ8: =AC8*K8*AJ8 -> 10.306875 | AR8: =AD8*M8*AK8 -> 10.05291667 | AS8: =AE8*O8*AL8 -> 9.4875
B9: 67 | C9: 27.01541667 | D9: 16.00416667 | E9: 25.7025 | F9: =IF(AN9>E9,E9,AN9) -> 15.42916667 | G9: 24.39916667 | H9: =IF(AO9>G9,G9,AO9) -> 14.85416667 | I9: 23.06708333 | J9: =IF(AP9>I9,I9,AP9) -> 14.26958333 | K9: 22.439375 | L9: =IF(AQ9>K9,K9,AQ9) -> 13.99645833 | M9: 21.81166667 | N9: =IF(AR9>M9,M9,AR9) -> 13.72333333 | O9: 20.4125 | P9: =IF(AS9>O9,O9,AS9) -> 13.12916667 | R9: 1.174583333 | S9: 1.1175 | T9: 1.060833333 | U9: 1.002916667 | V9: 0.975625 | W9: 0.9483333333 | X9: 0.8875 | Y9: 0.5924086556 | Z9: 0.6002982849 | AA9: 0.6087981147 | AB9: 0.6186123806 | AC9: 0.6237454623 | AD9: 0.6291739895 | AE9: 0.6431924883 | AF9: 1 | AG9: 1 | AH9: 1 | AI9: 1 | AJ9: 1 | AK9: 1 | AL9: 1 | AM9: =Y9*C9*AF9 -> 16.00416667 | AN9: =Z9*E9*AG9 -> 15.42916667 | AO9: =AA9*G9*AH9 -> 14.85416667 | AP9: =AB9*I9*AI9 -> 14.26958333 | AQ9: =AC9*K9*AJ9 -> 13.99645833 | AR9: =AD9*M9*AK9 -> 13.72333333 | AS9: =AE9*O9*AL9 -> 13.12916667
B10: 63 | C10: 25.02208333 | D10: 18.99416667 | E10: 23.81458333 | F10: 18.4 | G10: 22.5975 | H10: 17.79625 | I10: 21.36125 | J10: 17.1925 | K10: 20.77666667 | L10: 16.905 | M10: 20.19208333 | N10: 16.6175 | O10: 18.9175 | P10: 15.99458333 | R10: 1.087916667 | S10: 1.035416667 | T10: 0.9825 | U10: 0.92875 | V10: 0.9033333333 | W10: 0.8779166667 | X10: 0.8225 | Y10: 0.7590961318 | Z10: 0.7726358149 | AA10: 0.7875318066 | AB10: 0.8048452221 | AC10: 0.8136531365 | AD10: 0.8229710489 | AE10: 0.845491388 | AF10: 1 | AG10: 1 | AH10: 1 | AI10: 1 | AJ10: 1 | AK10: 1 | AL10: 1 | AM10: 18.99416667 | AN10: 18.4 | AO10: 17.79625 | AP10: 17.1925 | AQ10: 16.905 | AR10: 16.6175 | AS10: 15.99458333
B11: 57 | C11: 22.75083333 | D11: 22.75083333 | E11: 21.83083333 | F11: 21.83083333 | G11: 20.88208333 | H11: 20.88208333 | I11: 19.91416667 | J11: 19.91416667 | K11: 19.449375 | L11: 19.449375 | M11: 18.98458333 | N11: 18.98458333 | O11: 17.95916667 | P11: 17.95916667 | R11: 0.9891666667 | S11: 0.9491666667 | T11: 0.9079166667 | U11: 0.8658333333 | V11: 0.845625 | W11: 0.8254166667 | X11: 0.7808333333 | Y11: 1 | Z11: 1 | AA11: 1 | AB11: 1 | AC11: 1 | AD11: 1 | AE11: 1 | AF11: 1 | AG11: 1 | AH11: 1 | AI11: 1 | AJ11: 1 | AK11: 1 | AL11: 1 | AM11: 22.75083333 | AN11: 21.83083333 | AO11: 20.88208333 | AP11: 19.91416667 | AQ11: 19.449375 | AR11: 18.98458333 | AS11: 17.95916667
A12: 77.5 | B12: 72 | C12: 29.684375 | D12: 14.09708333 | E12: 28.246875 | F12: 13.53645833 | G12: 26.79979167 | H12: 12.980625 | I12: 25.32395833 | J12: 12.41041667 | K12: 24.63875 | L12: 12.14927083 | M12: 23.95354167 | N12: 11.888125 | O12: 22.42020833 | P12: 11.30833333 | R12: 1.290625 | S12: 1.228125 | T12: 1.165208333 | U12: 1.101041667 | V12: 1.07125 | W12: 1.041458333 | X12: 0.9747916667 | Y12: 0.4748991122 | Z12: 0.4792196777 | AA12: 0.4843554443 | AB12: 0.4900662252 | AC12: 0.4930960716 | AD12: 0.4962992599 | AE12: 0.5043812781 | AF12: 1 | AG12: 1 | AH12: 1 | AI12: 1 | AJ12: 1 | AK12: 1 | AL12: 1 | AM12: 14.09708333 | AN12: 13.53645833 | AO12: 12.980625 | AP12: 12.41041667 | AQ12: 12.14927083 | AR12: 11.888125 | AS12: 11.30833333
B13: 67 | C13: 26.981875 | D13: 17.88729167 | E13: 25.67375 | F13: 17.293125 | G13: 24.365625 | H13: 16.70375 | I13: 23.03354167 | J13: 16.10479167 | K13: 22.40583333 | L13: 15.82208333 | M13: 21.778125 | N13: 15.539375 | O13: 20.38375 | P13: 14.92604167 | R13: 1.173125 | S13: 1.11625 | T13: 1.059375 | U13: 1.001458333 | V13: 0.9741666667 | W13: 0.946875 | X13: 0.88625 | Y13: 0.6629373113 | Z13: 0.6735722284 | AA13: 0.6855457227 | AB13: 0.6991886832 | AC13: 0.7061591104 | AD13: 0.7135313531 | AE13: 0.7322519981 | AF13: 1 | AG13: 1 | AH13: 1 | AI13: 1 | AJ13: 1 | AK13: 1 | AL13: 1 | AM13: 17.88729167 | AN13: 17.293125 | AO13: 16.70375 | AP13: 16.10479167 | AQ13: 15.82208333 | AR13: 15.539375 | AS13: 14.92604167
B14: 63 | C14: 25.01729167 | D14: 20.85333333 | E14: 23.819375 | F14: 20.23041667 | G14: 22.611875 | H14: 19.60270833 | I14: 21.39 | J14: 18.960625 | K14: 20.81739583 | L14: 18.64916667 | M14: 20.24479167 | N14: 18.33770833 | O14: 19.02291667 | P14: 17.56145833 | R14: 1.087708333 | S14: 1.035625 | T14: 0.983125 | U14: 0.93 | V14: 0.9051041667 | W14: 0.8802083333 | X14: 0.8270833333 | Y14: 0.8335567899 | Z14: 0.8493260913 | AA14: 0.8669209578 | AB14: 0.8864247312 | AC14: 0.8958453217 | AD14: 0.9057988166 | AE14: 0.9231738035 | AF14: 1 | AG14: 1 | AH14: 1 | AI14: 1 | AJ14: 1 | AK14: 1 | AL14: 1 | AM14: 20.85333333 | AN14: 20.23041667 | AO14: 19.60270833 | AP14: 18.960625 | AQ14: 18.64916667 | AR14: 18.33770833 | AS14: 17.56145833
B15: 57 | C15: 23.43604167 | D15: 23.43604167 | E15: 22.49208333 | F15: 22.49208333 | G15: 21.519375 | H15: 21.519375 | I15: 20.53229167 | J15: 20.53229167 | K15: 20.05552083 | L15: 20.05552083 | M15: 19.57875 | N15: 19.57875 | O15: 18.529375 | P15: 18.529375 | R15: 1.018958333 | S15: 0.9779166667 | T15: 0.935625 | U15: 0.8927083333 | V15: 0.8719791667 | W15: 0.85125 | X15: 0.805625 | Y15: 1 | Z15: 1 | AA15: 1 | AB15: 1 | AC15: 1 | AD15: 1 | AE15: 1 | AF15: 1 | AG15: 1 | AH15: 1 | AI15: 1 | AJ15: 1 | AK15: 1 | AL15: 1 | AM15: 23.43604167 | AN15: 22.49208333 | AO15: 21.519375 | AP15: 20.53229167 | AQ15: 20.05552083 | AR15: 19.57875 | AS15: 18.529375
A16: 80 | B16: 72 | C16: 29.65083333 | D16: 15.99458333 | E16: 28.21333333 | F16: 15.41958333 | G16: 26.76625 | H16: 14.84458333 | I16: 25.29041667 | J16: 14.26 | K16: 24.60520833 | L16: 13.99166667 | M16: 23.92 | N16: 13.72333333 | O16: 22.38666667 | P16: 13.12916667 | R16: 1.289166667 | S16: 1.226666667 | T16: 1.16375 | U16: 1.099583333 | V16: 1.069791667 | W16: 1.04 | X16: 0.9733333333 | Y16: 0.5394311571 | Z16: 0.5465353261 | AA16: 0.5546007877 | AB16: 0.5638499432 | AC16: 0.5686465433 | AD16: 0.5737179487 | AE16: 0.5864726027 | AF16: 1 | AG16: 1 | AH16: 1 | AI16: 1 | AJ16: 1 | AK16: 1 | AL16: 1 | AM16: 15.99458333 | AN16: 15.41958333 | AO16: 14.84458333 | AP16: 14.26 | AQ16: 13.99166667 | AR16: 13.72333333 | AS16: 13.12916667
B17: 67 | C17: 26.94833333 | D17: 19.77041667 | E17: 25.645 | F17: 19.15708333 | G17: 24.33208333 | H17: 18.55333333 | I17: 23 | J17: 17.94 | K17: 22.37229167 | L17: 17.64770833 | M17: 21.74458333 | N17: 17.35541667 | O17: 20.355 | P17: 16.72291667 | R17: 1.171666667 | S17: 1.115 | T17: 1.057916667 | U17: 1 | V17: 0.9727083333 | W17: 0.9454166667 | X17: 0.885 | Y17: 0.7336415363 | Z17: 0.7470104634 | AA17: 0.7625049232 | AB17: 0.78 | AC17: 0.7888198758 | AD17: 0.7981489643 | AE17: 0.8215630885 | AF17: 1 | AG17: 1 | AH17: 1 | AI17: 1 | AJ17: 1 | AK17: 1 | AL17: 1 | AM17: 19.77041667 | AN17: 19.15708333 | AO17: 18.55333333 | AP17: 17.94 | AQ17: 17.64770833 | AR17: 17.35541667 | AS17: 16.72291667
B18: 63 | C18: 25.0125 | D18: 22.7125 | E18: 23.82416667 | F18: 22.06083333 | G18: 22.62625 | H18: 21.40916667 | I18: =U18*$I$17 -> 21.41875 | J18: 20.72875 | K18: 20.858125 | L18: 20.39333333 | M18: 20.2975 | N18: 20.05791667 | O18: 19.12833333 | P18: 19.12833333 | R18: 1.0875 | S18: 1.035833333 | T18: 0.98375 | U18: 0.93125 | V18: 0.906875 | W18: 0.8825 | X18: 0.8316666667 | Y18: 0.908045977 | Z18: 0.9259855189 | AA18: 0.9462092334 | AB18: 0.9677852349 | AC18: 0.9777165173 | AD18: 0.9881964117 | AE18: 1 | AF18: 1 | AG18: 1 | AH18: 1 | AI18: 1 | AJ18: 1 | AK18: 1 | AL18: 1 | AM18: 22.7125 | AN18: 22.06083333 | AO18: 21.40916667 | AP18: 20.72875 | AQ18: 20.39333333 | AR18: 20.05791667 | AS18: 19.12833333
B19: 57 | C19: 24.12125 | D19: 24.12125 | E19: 23.15333333 | F19: 23.15333333 | G19: 22.15666667 | H19: 22.15666667 | I19: =U19*$I$17 -> 21.15041667 | J19: 21.15041667 | K19: 20.66166667 | L19: 20.66166667 | M19: 20.17291667 | N19: 20.17291667 | O19: 19.09958333 | P19: 19.09958333 | R19: 1.04875 | S19: 1.006666667 | T19: 0.9633333333 | U19: 0.9195833333 | V19: 0.8983333333 | W19: 0.8770833333 | X19: 0.8304166667 | Y19: 1 | Z19: 1 | AA19: 1 | AB19: 1 | AC19: 1 | AD19: 1 | AE19: 1 | AF19: 1 | AG19: 1 | AH19: 1 | AI19: 1 | AJ19: 1 | AK19: 1 | AL19: 1 | AM19: 24.12125 | AN19: 23.15333333 | AO19: 22.15666667 | AP19: 21.15041667 | AQ19: 20.66166667 | AR19: 20.17291667 | AS19: 19.09958333

Sheet 24VNA9_25 (hidden)
A2: 24VNA9_25
A3: Evaporator Air Flow | C3: Condenser Entering Air Temperature ˚F
A4: 825 | B4: CFM | C4: 65 | E4: 75 | G4: 85 | I4: 95 | K4: 100 | M4: 105 | O4: 115
A5: Evap. Air °F DB | B5: EWB† ˚F | C5: Capacity Mbtuh | E5: Capacity Mbtuh | G5: Capacity Mbtuh | I5: Capacity Mbtuh | K5: Capacity Mbtuh | M5: Capacity Mbtuh | O5: Capacity Mbtuh
C6: Total | D6: Sens. | E6: Total | F6: Sens. | G6: Total | H6: Sens. | I6: Total | J6: Sens. | K6: Total | L6: Sens. | M6: Total | N6: Sens. | O6: Total | P6: Sens.
R7: Total Factors | Y7: Sens. % | AF7: IDB Adj | AM7: Sens Calc
A8: 75 | B8: 72 | C8: =R8*$I$17 -> 29.07583333 | D8: =IF(AM8>C8,C8,AM8) -> 11.95041667 | E8: =S8*$I$17 -> 27.86833333 | F8: =IF(AN8>E8,E8,AN8) -> 11.49041667 | G8: =T8*$I$17 -> 26.61291667 | H8: =IF(AO8>G8,G8,AO8) -> 11.02083333 | I8: =U8*$I$17 -> 25.32875 | J8: =IF(AP8>I8,I8,AP8) -> 10.54166667 | K8: =V8*$I$17 -> 24.70104167 | L8: =IF(AQ8>K8,K8,AQ8) -> 10.306875 | M8: =W8*$I$17 -> 24.07333333 | N8: =IF(AR8>M8,M8,AR8) -> 10.07208333 | O8: =X8*$I$17 -> 22.69333333 | P8: =IF(AS8>O8,O8,AS8) -> 9.57375 | R8: 1.264166667 | S8: 1.211666667 | T8: 1.157083333 | U8: 1.10125 | V8: 1.073958333 | W8: 1.046666667 | X8: 0.9866666667 | Y8: 0.4110085695 | Z8: 0.4123108666 | AA8: 0.4141159525 | AB8: 0.4161937193 | AC8: 0.4172647915 | AD8: 0.4183917197 | AE8: 0.421875 | AF8: 1 | AG8: 1 | AH8: 1 | AI8: 1 | AJ8: 1 | AK8: 1 | AL8: 1 | AM8: =Y8*C8*AF8 -> 11.95041667 | AN8: =Z8*E8*AG8 -> 11.49041667 | AO8: =AA8*G8*AH8 -> 11.02083333 | AP8: =AB8*I8*AI8 -> 10.54166667 | AQ8: =AC8*K8*AJ8 -> 10.306875 | AR8: =AD8*M8*AK8 -> 10.07208333 | AS8: =AE8*O8*AL8 -> 9.57375
B9: 67 | C9: 26.565 | D9: 15.85083333 | E9: 25.44375 | F9: =IF(AN9>E9,E9,AN9) -> 15.34291667 | G9: 24.29375 | H9: =IF(AO9>G9,G9,AO9) -> 14.835 | I9: 23.09583333 | J9: =IF(AP9>I9,I9,AP9) -> 14.30791667 | K9: 22.51125 | L9: =IF(AQ9>K9,K9,AQ9) -> 14.04916667 | M9: 21.92666667 | N9: =IF(AR9>M9,M9,AR9) -> 13.79041667 | O9: 20.65208333 | P9: =IF(AS9>O9,O9,AS9) -> 13.24416667 | R9: 1.155 | S9: 1.10625 | T9: 1.05625 | U9: 1.004166667 | V9: 0.97875 | W9: 0.9533333333 | X9: 0.8979166667 | Y9: 0.5966810967 | Z9: 0.6030131827 | AA9: 0.6106508876 | AB9: 0.6195020747 | AC9: 0.6240953597 | AD9: 0.6289335664 | AE9: 0.6412993039 | AF9: 1 | AG9: 1 | AH9: 1 | AI9: 1 | AJ9: 1 | AK9: 1 | AL9: 1 | AM9: =Y9*C9*AF9 -> 15.85083333 | AN9: =Z9*E9*AG9 -> 15.34291667 | AO9: =AA9*G9*AH9 -> 14.835 | AP9: =AB9*I9*AI9 -> 14.30791667 | AQ9: =AC9*K9*AJ9 -> 14.04916667 | AR9: =AD9*M9*AK9 -> 13.79041667 | AS9: =AE9*O9*AL9 -> 13.24416667
B10: 63 | C10: 24.69625 | D10: 18.89833333 | E10: 23.64208333 | F10: 18.36166667 | G10: 22.55916667 | H10: 17.81541667 | I10: 21.4475 | J10: 17.25 | K10: 20.89166667 | L10: 16.976875 | M10: 20.33583333 | N10: 16.70375 | O10: 19.13791667 | P10: 16.10958333 | R10: 1.07375 | S10: 1.027916667 | T10: 0.9808333333 | U10: 0.9325 | V10: 0.9083333333 | W10: 0.8841666667 | X10: 0.8320833333 | Y10: 0.7652308886 | Z10: 0.7766518038 | AA10: 0.7897196262 | AB10: 0.8042895442 | AC10: 0.8126146789 | AD10: 0.8213949105 | AE10: 0.841762644 | AF10: 1 | AG10: 1 | AH10: 1 | AI10: 1 | AJ10: 1 | AK10: 1 | AL10: 1 | AM10: 18.89833333 | AN10: 18.36166667 | AO10: 17.81541667 | AP10: 17.25 | AQ10: 16.976875 | AR10: 16.70375 | AS10: 16.10958333
B11: 57 | C11: 22.63583333 | D11: 22.63583333 | E11: 21.80208333 | F11: 21.80208333 | G11: 20.93 | H11: 20.93 | I11: 20.03875 | J11: 20.03875 | K11: 19.58833333 | L11: 19.58833333 | M11: 19.13791667 | N11: 19.13791667 | O11: 18.17 | P11: 18.17 | R11: 0.9841666667 | S11: 0.9479166667 | T11: 0.91 | U11: 0.87125 | V11: 0.8516666667 | W11: 0.8320833333 | X11: 0.79 | Y11: 1 | Z11: 1 | AA11: 1 | AB11: 1 | AC11: 1 | AD11: 1 | AE11: 1 | AF11: 1 | AG11: 1 | AH11: 1 | AI11: 1 | AJ11: 1 | AK11: 1 | AL11: 1 | AM11: 22.63583333 | AN11: 21.80208333 | AO11: 20.93 | AP11: 20.03875 | AQ11: 19.58833333 | AR11: 19.13791667 | AS11: 18.17
A12: 77.5 | B12: 72 | C12: 28.98479167 | D12: 13.843125 | E12: 27.77729167 | F12: 13.36875 | G12: 26.52666667 | H12: 12.88 | I12: 25.2425 | J12: 12.38645833 | K12: 24.61479167 | L12: 12.14447917 | M12: 23.98708333 | N12: 11.9025 | O12: 22.61666667 | P12: 11.385 | R12: 1.260208333 | S12: 1.207708333 | T12: 1.153333333 | U12: 1.0975 | V12: 1.070208333 | W12: 1.042916667 | X12: 0.9833333333 | Y12: 0.4775996032 | Z12: 0.4812834225 | AA12: 0.4855491329 | AB12: 0.4906985573 | AC12: 0.493381351 | AD12: 0.4962045545 | AE12: 0.5033898305 | AF12: 1 | AG12: 1 | AH12: 1 | AI12: 1 | AJ12: 1 | AK12: 1 | AL12: 1 | AM12: 13.843125 | AN12: 13.36875 | AO12: 12.88 | AP12: 12.38645833 | AQ12: 12.14447917 | AR12: 11.9025 | AS12: 11.385
B13: 67 | C13: 26.51229167 | D13: 17.72916667 | E13: 25.39583333 | F13: 17.206875 | G13: 24.24104167 | H13: 16.67979167 | I13: 23.04791667 | J13: 16.13833333 | K13: 22.46333333 | L13: 15.87239583 | M13: 21.87875 | N13: 15.60645833 | O13: 20.60895833 | P13: 15.03625 | R13: 1.152708333 | S13: 1.104166667 | T13: 1.053958333 | U13: 1.002083333 | V13: 0.9766666667 | W13: 0.95125 | X13: 0.8960416667 | Y13: 0.6687149828 | Z13: 0.6775471698 | AA13: 0.6880806483 | AB13: 0.7002079002 | AC13: 0.7065912969 | AD13: 0.7133158125 | AE13: 0.729597768 | AF13: 1 | AG13: 1 | AH13: 1 | AI13: 1 | AJ13: 1 | AK13: 1 | AL13: 1 | AM13: 17.72916667 | AN13: 17.206875 | AO13: 16.67979167 | AP13: 16.13833333 | AQ13: 15.87239583 | AR13: 15.60645833 | AS13: 15.03625
B14: 63 | C14: 24.69625 | D14: 20.76708333 | E14: 23.646875 | F14: 20.21125 | G14: 22.57354167 | H14: 19.64104167 | I14: 21.47145833 | J14: 19.05166667 | K14: 20.9228125 | L14: 18.75697917 | M14: 20.37416667 | N14: 18.46229167 | O14: 19.24333333 | P14: 17.72916667 | R14: 1.07375 | S14: 1.028125 | T14: 0.9814583333 | U14: 0.9335416667 | V14: 0.9096875 | W14: 0.8858333333 | X14: 0.8366666667 | Y14: 0.8409002716 | Z14: 0.8547112462 | AA14: 0.8700912757 | AB14: 0.8873019415 | AC14: 0.8964845986 | AD14: 0.9061618062 | AE14: 0.921314741 | AF14: 1 | AG14: 1 | AH14: 1 | AI14: 1 | AJ14: 1 | AK14: 1 | AL14: 1 | AM14: 20.76708333 | AN14: 20.21125 | AO14: 19.64104167 | AP14: 19.05166667 | AQ14: 18.75697917 | AR14: 18.46229167 | AS14: 17.72916667
B15: 57 | C15: 23.29708333 | D15: 23.29708333 | E15: 22.44416667 | F15: 22.44416667 | G15: 21.55770833 | H15: 21.55770833 | I15: 20.63770833 | J15: 20.63770833 | K15: 20.1825 | L15: 20.1825 | M15: 19.72729167 | N15: 19.72729167 | O15: 18.74020833 | P15: 18.74020833 | R15: 1.012916667 | S15: 0.9758333333 | T15: 0.9372916667 | U15: 0.8972916667 | V15: 0.8775 | W15: 0.8577083333 | X15: 0.8147916667 | Y15: 1 | Z15: 1 | AA15: 1 | AB15: 1.00046436 | AC15: 1.000237417 | AD15: 1 | AE15: 1 | AF15: 1 | AG15: 1 | AH15: 1 | AI15: 1 | AJ15: 1 | AK15: 1 | AL15: 1 | AM15: 23.29708333 | AN15: 22.44416667 | AO15: 21.55770833 | AP15: 20.64729167 | AQ15: 20.18729167 | AR15: 19.72729167 | AS15: 18.74020833
A16: 80 | B16: 72 | C16: 28.89375 | D16: 15.73583333 | E16: 27.68625 | F16: 15.24708333 | G16: 26.44041667 | H16: 14.73916667 | I16: 25.15625 | J16: 14.23125 | K16: 24.52854167 | L16: 13.98208333 | M16: 23.90083333 | N16: 13.73291667 | O16: 22.54 | P16: 13.19625 | R16: 1.25625 | S16: 1.20375 | T16: 1.149583333 | U16: 1.09375 | V16: 1.066458333 | W16: 1.039166667 | X16: 0.98 | Y16: 0.5446102819 | Z16: 0.5507095881 | AA16: 0.5574483509 | AB16: 0.5657142857 | AC16: 0.5700332096 | AD16: 0.5745789896 | AE16: 0.5854591837 | AF16: 1 | AG16: 1 | AH16: 1 | AI16: 1 | AJ16: 1 | AK16: 1 | AL16: 1 | AM16: 15.73583333 | AN16: 15.24708333 | AO16: 14.73916667 | AP16: 14.23125 | AQ16: 13.98208333 | AR16: 13.73291667 | AS16: 13.19625
B17: 67 | C17: 26.45958333 | D17: 19.6075 | E17: 25.34791667 | F17: 19.07083333 | G17: 24.18833333 | H17: 18.52458333 | I17: 23 | J17: 17.96875 | K17: 22.41541667 | L17: 17.695625 | M17: 21.83083333 | N17: 17.4225 | O17: 20.56583333 | P17: 16.82833333 | R17: 1.150416667 | S17: 1.102083333 | T17: 1.051666667 | U17: 1 | V17: 0.9745833333 | W17: 0.9491666667 | X17: 0.8941666667 | Y17: 0.7410358566 | Z17: 0.752362949 | AA17: 0.7658478605 | AB17: 0.78125 | AC17: 0.7894399316 | AD17: 0.7980684811 | AE17: 0.8182665424 | AF17: 1 | AG17: 1 | AH17: 1 | AI17: 1 | AJ17: 1 | AK17: 1 | AL17: 1 | AM17: 19.6075 | AN17: 19.07083333 | AO17: 18.52458333 | AP17: 17.96875 | AQ17: 17.695625 | AR17: 17.4225 | AS17: 16.82833333
B18: 63 | C18: 24.69625 | D18: 22.63583333 | E18: 23.65166667 | F18: 22.06083333 | G18: 22.58791667 | H18: 21.46666667 | I18: =U18*$I$17 -> 21.49541667 | J18: 20.85333333 | K18: 20.95395833 | L18: 20.53708333 | M18: 20.4125 | N18: 20.22083333 | O18: 19.34875 | P18: 19.34875 | R18: 1.07375 | S18: 1.028333333 | T18: 0.9820833333 | U18: 0.9345833333 | V18: 0.9110416667 | W18: 0.8875 | X18: 0.84125 | Y18: 0.9165696546 | Z18: 0.93273906 | AA18: 0.9503606279 | AB18: 0.9701292911 | AC18: 0.9801051909 | AD18: 0.9906103286 | AE18: 1 | AF18: 1 | AG18: 1 | AH18: 1 | AI18: 1 | AJ18: 1 | AK18: 1 | AL18: 1 | AM18: 22.63583333 | AN18: 22.06083333 | AO18: 21.46666667 | AP18: 20.85333333 | AQ18: 20.53708333 | AR18: 20.22083333 | AS18: 19.34875
B19: 57 | C19: 23.95833333 | D19: 23.95833333 | E19: 23.08625 | F19: 23.08625 | G19: 22.18541667 | H19: 22.18541667 | I19: =U19*$I$17 -> 21.23666667 | J19: 21.23666667 | K19: 20.77666667 | L19: 20.77666667 | M19: 20.31666667 | N19: 20.31666667 | O19: 19.31041667 | P19: 19.31041667 | R19: 1.041666667 | S19: 1.00375 | T19: 0.9645833333 | U19: 0.9233333333 | V19: 0.9033333333 | W19: 0.8833333333 | X19: 0.8395833333 | Y19: 1 | Z19: 1 | AA19: 1 | AB19: 1.000902527 | AC19: 1.000461255 | AD19: 1 | AE19: 1 | AF19: 1 | AG19: 1 | AH19: 1 | AI19: 1 | AJ19: 1 | AK19: 1 | AL19: 1 | AM19: 23.95833333 | AN19: 23.08625 | AO19: 22.18541667 | AP19: 21.25583333 | AQ19: 20.78625 | AR19: 20.31666667 | AS19: 19.31041667

Sheet 24VNA9_36 (hidden)
A2: 24VNA9_36
A3: Evaporator Air Flow | C3: Condenser Entering Air Temperature ˚F
A4: 1050 | B4: CFM | C4: 65 | E4: 75 | G4: 85 | I4: 95 | K4: 100 | M4: 105 | O4: 115
A5: Evap. Air °F DB | B5: EWB† ˚F | C5: Capacity Mbtuh | E5: Capacity Mbtuh | G5: Capacity Mbtuh | I5: Capacity Mbtuh | K5: Capacity Mbtuh | M5: Capacity Mbtuh | O5: Capacity Mbtuh
C6: Total | D6: Sens. | E6: Total | F6: Sens. | G6: Total | H6: Sens. | I6: Total | J6: Sens. | K6: Total | L6: Sens. | M6: Total | N6: Sens. | O6: Total | P6: Sens.
R7: Total Factors | Y7: Sens. % | AF7: IDB Adj | AM7: Sens Calc
A8: 75 | B8: 72 | C8: =R8*$I$17 -> 29.03257143 | D8: =IF(AM8>C8,C8,AM8) -> 11.81542857 | E8: =S8*$I$17 -> 27.784 | F8: =IF(AN8>E8,E8,AN8) -> 11.32914286 | G8: =T8*$I$17 -> 26.48285714 | H8: =IF(AO8>G8,G8,AO8) -> 10.82314286 | I8: =U8*$I$17 -> 25.162 | J8: =IF(AP8>I8,I8,AP8) -> 10.97428571 | K8: =V8*$I$17 -> 24.54428571 | L8: =IF(AQ8>K8,K8,AQ8) -> 10.41242857 | M8: =W8*$I$17 -> 23.92657143 | N8: =IF(AR8>M8,M8,AR8) -> 9.850571429 | O8: =X8*$I$17 -> 22.50057143 | P8: =IF(AS8>O8,O8,AS8) -> 9.318285714 | R8: 1.262285714 | S8: 1.208 | T8: 1.151428571 | U8: 1.094 | V8: 1.067142857 | W8: 1.040285714 | X8: 0.9782857143 | Y8: 0.4069714803 | Z8: 0.4077578051 | AA8: 0.4086848635 | AB8: 0.4361452076 | AC8: 0.4242302544 | AD8: 0.4117000824 | AE8: 0.414135514 | AF8: 1 | AG8: 1 | AH8: 1 | AI8: 1 | AJ8: 1 | AK8: 1 | AL8: 1 | AM8: =Y8*C8*AF8 -> 11.81542857 | AN8: =Z8*E8*AG8 -> 11.32914286 | AO8: =AA8*G8*AH8 -> 10.82314286 | AP8: =AB8*I8*AI8 -> 10.97428571 | AQ8: =AC8*K8*AJ8 -> 10.41242857 | AR8: =AD8*M8*AK8 -> 9.850571429 | AS8: =AE8*O8*AL8 -> 9.318285714
B9: 67 | C9: 26.62742857 | D9: 15.25885714 | E9: 25.49057143 | F9: =IF(AN9>E9,E9,AN9) -> 14.73314286 | G9: 24.30771429 | H9: =IF(AO9>G9,G9,AO9) -> 14.19428571 | I9: 23.08542857 | J9: =IF(AP9>I9,I9,AP9) -> 13.63571429 | K9: 22.50057143 | L9: =IF(AQ9>K9,K9,AQ9) -> 13.37285714 | M9: 21.91571429 | N9: =IF(AR9>M9,M9,AR9) -> 13.11 | O9: 20.62114286 | P9: =IF(AS9>O9,O9,AS9) -> 12.53171429 | R9: 1.157714286 | S9: 1.108285714 | T9: 1.056857143 | U9: 1.003714286 | V9: 0.9782857143 | W9: 0.9528571429 | X9: 0.8965714286 | Y9: 0.5730503455 | Z9: 0.5779840165 | AA9: 0.5839416058 | AB9: 0.5906632508 | AC9: 0.5943341121 | AD9: 0.5982008996 | AE9: 0.6077119184 | AF9: 1 | AG9: 1 | AH9: 1 | AI9: 1 | AJ9: 1 | AK9: 1 | AL9: 1 | AM9: =Y9*C9*AF9 -> 15.25885714 | AN9: =Z9*E9*AG9 -> 14.73314286 | AO9: =AA9*G9*AH9 -> 14.19428571 | AP9: =AB9*I9*AI9 -> 13.63571429 | AQ9: =AC9*K9*AJ9 -> 13.37285714 | AR9: =AD9*M9*AK9 -> 13.11 | AS9: =AE9*O9*AL9 -> 12.53171429
B10: 63 | C10: 24.83342857 | D10: 17.95314286 | E10: 23.76885714 | F10: 17.39457143 | G10: 22.65828571 | H10: 16.81628571 | I10: 21.51485714 | J10: 16.23142857 | K10: 20.96614286 | L10: 15.94885714 | M10: 20.41742857 | N10: 15.66628571 | O10: 19.19514286 | P10: 15.04857143 | R10: 1.079714286 | S10: 1.033428571 | T10: 0.9851428571 | U10: 0.9354285714 | V10: 0.9115714286 | W10: 0.8877142857 | X10: 0.8345714286 | Y10: 0.7229425774 | Z10: 0.7318219519 | AA10: 0.7421693735 | AB10: 0.7544288332 | AC10: 0.7606958157 | AD10: 0.767299646 | AE10: 0.7839780897 | AF10: 1 | AG10: 1 | AH10: 1 | AI10: 1 | AJ10: 1 | AK10: 1 | AL10: 1 | AM10: 17.95314286 | AN10: 17.39457143 | AO10: 16.81628571 | AP10: 16.23142857 | AQ10: 15.94885714 | AR10: 15.66628571 | AS10: 15.04857143
B11: 57 | C11: 22.39542857 | D11: 21.82371429 | E11: 21.45571429 | F11: 21.19285714 | G11: 20.50285714 | H11: 20.50285714 | I11: 19.61571429 | J11: 19.61571429 | K11: 19.17214286 | L11: 19.17214286 | M11: 18.72857143 | N11: 18.72857143 | O11: 17.77571429 | P11: 17.77571429 | R11: 0.9737142857 | S11: 0.9328571429 | T11: 0.8914285714 | U11: 0.8528571429 | V11: 0.8335714286 | W11: 0.8142857143 | X11: 0.7728571429 | Y11: 0.974471831 | Z11: 0.9877488515 | AA11: 1 | AB11: 1 | AC11: 1 | AD11: 1 | AE11: 1 | AF11: 1 | AG11: 1 | AH11: 1 | AI11: 1 | AJ11: 1 | AK11: 1 | AL11: 1 | AM11: 21.82371429 | AN11: 21.19285714 | AO11: 20.50285714 | AP11: 19.61571429 | AQ11: 19.17214286 | AR11: 18.72857143 | AS11: 17.77571429
A12: 77.5 | B12: 72 | C12: 28.96685714 | D12: 13.46814286 | E12: 27.71828571 | F12: 12.96542857 | G12: 26.41714286 | H12: 12.43971429 | I12: 25.09628571 | J12: 12.24257143 | K12: 24.47857143 | L12: 11.83514286 | M12: 23.86085714 | N12: 11.42771429 | O12: 22.43485714 | P12: 10.87571429 | R12: 1.259428571 | S12: 1.205142857 | T12: 1.148571429 | U12: 1.091142857 | V12: 1.064285714 | W12: 1.037428571 | X12: 0.9754285714 | Y12: 0.4649500907 | Z12: 0.4677572309 | AA12: 0.4708955224 | AB12: 0.4878240377 | AC12: 0.4834899329 | AD12: 0.4789314239 | AE12: 0.4847685999 | AF12: 1 | AG12: 1 | AH12: 1 | AI12: 1 | AJ12: 1 | AK12: 1 | AL12: 1 | AM12: 13.46814286 | AN12: 12.96542857 | AO12: 12.43971429 | AP12: 12.24257143 | AQ12: 11.83514286 | AR12: 11.42771429 | AS12: 10.87571429
B13: 67 | C13: 26.58471429 | D13: 16.89842857 | E13: 25.44785714 | F13: 16.353 | G13: 24.265 | H13: 15.79442857 | I13: 23.04271429 | J13: 15.21942857 | K13: 22.4595 | L13: 14.94835714 | M13: 21.87628571 | N13: 14.67728571 | O13: 20.57842857 | P13: 14.07928571 | R13: 1.155857143 | S13: 1.106428571 | T13: 1.055 | U13: 1.001857143 | V13: 0.9765 | W13: 0.9511428571 | X13: 0.8947142857 | Y13: 0.6356445433 | Z13: 0.6426081343 | AA13: 0.6509140149 | AB13: 0.6604876658 | AC13: 0.6655694536 | AD13: 0.6709221989 | AE13: 0.684176912 | AF13: 1 | AG13: 1 | AH13: 1 | AI13: 1 | AJ13: 1 | AK13: 1 | AL13: 1 | AM13: 16.89842857 | AN13: 16.353 | AO13: 15.79442857 | AP13: 15.21942857 | AQ13: 14.94835714 | AR13: 14.67728571 | AS13: 14.07928571
B14: 63 | C14: 24.81042857 | D14: 19.58285714 | E14: 23.74914286 | F14: 19.00785714 | G14: 22.64185714 | H14: 18.40985714 | I14: 21.50171429 | J14: 17.802 | K14: 20.95628571 | L14: 17.50957143 | M14: 20.41085714 | N14: 17.21714286 | O14: 19.19514286 | P14: 16.57642857 | R14: 1.078714286 | S14: 1.032571429 | T14: 0.9844285714 | U14: 0.9348571429 | V14: 0.9111428571 | W14: 0.8874285714 | X14: 0.8345714286 | Y14: 0.7892994305 | Z14: 0.8003597122 | AA14: 0.8130895371 | AB14: 0.8279339853 | AC14: 0.8355283788 | AD14: 0.8435286542 | AE14: 0.8635741185 | AF14: 1 | AG14: 1 | AH14: 1 | AI14: 1 | AJ14: 1 | AK14: 1 | AL14: 1 | AM14: 19.58285714 | AN14: 19.00785714 | AO14: 18.40985714 | AP14: 17.802 | AQ14: 17.50957143 | AR14: 17.21714286 | AS14: 16.57642857
B15: 57 | C15: 22.908 | D15: 22.62214286 | E15: 22.00114286 | F15: 21.86971429 | G15: 21.07785714 | H15: 21.07785714 | I15: 20.16771429 | J15: 20.16771429 | K15: 19.71757143 | L15: 19.71757143 | M15: 19.26742857 | N15: 19.26742857 | O15: 18.28828571 | P15: 18.28828571 | R15: 0.996 | S15: 0.9565714286 | T15: 0.9164285714 | U15: 0.8768571429 | V15: 0.8572857143 | W15: 0.8377142857 | X15: 0.7951428571 | Y15: 0.9875215146 | Z15: 0.9940262843 | AA15: 1 | AB15: 1 | AC15: 1 | AD15: 1 | AE15: 1 | AF15: 1 | AG15: 1 | AH15: 1 | AI15: 1 | AJ15: 1 | AK15: 1 | AL15: 1 | AM15: 22.62214286 | AN15: 21.86971429 | AO15: 21.07785714 | AP15: 20.16771429 | AQ15: 19.71757143 | AR15: 19.26742857 | AS15: 18.28828571
A16: 80 | B16: 72 | C16: 28.90114286 | D16: 15.12085714 | E16: 27.65257143 | F16: 14.60171429 | G16: 26.35142857 | H16: 14.05628571 | I16: 25.03057143 | J16: 13.51085714 | K16: 24.41285714 | L16: 13.25785714 | M16: 23.79514286 | N16: 13.00485714 | O16: 22.36914286 | P16: 12.43314286 | R16: 1.256571429 | S16: 1.202285714 | T16: 1.145714286 | U16: 1.088285714 | V16: 1.061428571 | W16: 1.034571429 | X16: 0.9725714286 | Y16: 0.5231923602 | Z16: 0.5280418251 | AA16: 0.5334164589 | AB16: 0.539774219 | AC16: 0.5430686406 | AD16: 0.5465341066 | AE16: 0.5558166863 | AF16: 1 | AG16: 1 | AH16: 1 | AI16: 1 | AJ16: 1 | AK16: 1 | AL16: 1 | AM16: 15.12085714 | AN16: 14.60171429 | AO16: 14.05628571 | AP16: 13.51085714 | AQ16: 13.25785714 | AR16: 13.00485714 | AS16: 12.43314286
B17: 67 | C17: 26.542 | D17: 18.538 | E17: 25.40514286 | F17: 17.97285714 | G17: 24.22228571 | H17: 17.39457143 | I17: 23 | J17: 16.80314286 | K17: 22.41842857 | L17: 16.52385714 | M17: 21.83685714 | N17: 16.24457143 | O17: 20.53571429 | P17: 15.62685714 | R17: 1.154 | S17: 1.104571429 | T17: 1.053142857 | U17: 1 | V17: 0.9747142857 | W17: 0.9494285714 | X17: 0.8928571429 | Y17: 0.698440208 | Z17: 0.7074495603 | AA17: 0.7181226262 | AB17: 0.7305714286 | AC17: 0.7370658068 | AD17: 0.7439061089 | AE17: 0.76096 | AF17: 1 | AG17: 1 | AH17: 1 | AI17: 1 | AJ17: 1 | AK17: 1 | AL17: 1 | AM17: 18.538 | AN17: 17.97285714 | AO17: 17.39457143 | AP17: 16.80314286 | AQ17: 16.52385714 | AR17: 16.24457143 | AS17: 15.62685714
B18: 63 | C18: 24.78742857 | D18: 21.21257143 | E18: 23.72942857 | F18: 20.62114286 | G18: 22.62542857 | H18: 20.00342857 | I18: =U18*$I$17 -> 21.48857143 | J18: 19.37257143 | K18: 20.94642857 | L18: 19.07028571 | M18: 20.40428571 | N18: 18.768 | O18: 19.19514286 | P18: 18.10428571 | R18: 1.077714286 | S18: 1.031714286 | T18: 0.9837142857 | U18: 0.9342857143 | V18: 0.9107142857 | W18: 0.8871428571 | X18: 0.8345714286 | Y18: 0.8557794274 | Z18: 0.8690113542 | AA18: 0.8841126924 | AB18: 0.901529052 | AC18: 0.9104313725 | AD18: 0.9198067633 | AE18: 0.9431701472 | AF18: 1 | AG18: 1 | AH18: 1 | AI18: 1 | AJ18: 1 | AK18: 1 | AL18: 1 | AM18: 21.21257143 | AN18: 20.62114286 | AO18: 20.00342857 | AP18: 19.37257143 | AQ18: 19.07028571 | AR18: 18.768 | AS18: 18.10428571
B19: 57 | C19: 23.42057143 | D19: 23.42057143 | E19: 22.54657143 | F19: 22.54657143 | G19: 21.65285714 | H19: 21.65285714 | I19: =U19*$I$17 -> 20.71971429 | J19: 20.71971429 | K19: 20.263 | L19: 20.263 | M19: 19.80628571 | N19: 19.80628571 | O19: 18.80085714 | P19: 18.80085714 | R19: 1.018285714 | S19: 0.9802857143 | T19: 0.9414285714 | U19: 0.9008571429 | V19: 0.881 | W19: 0.8611428571 | X19: 0.8174285714 | Y19: 1 | Z19: 1 | AA19: 1 | AB19: 1 | AC19: 1 | AD19: 1 | AE19: 1 | AF19: 1 | AG19: 1 | AH19: 1 | AI19: 1 | AJ19: 1 | AK19: 1 | AL19: 1 | AM19: 23.42057143 | AN19: 22.54657143 | AO19: 21.65285714 | AP19: 20.71971429 | AQ19: 20.263 | AR19: 19.80628571 | AS19: 18.80085714

Sheet 24VNA9_48 (hidden)
A2: 24VNA9_48
A3: Evaporator Air Flow | C3: Condenser Entering Air Temperature ˚F
A4: 1400 | B4: CFM | C4: 65 | E4: 75 | G4: 85 | I4: 95 | K4: 100 | M4: 105 | O4: 115
A5: Evap. Air °F DB | B5: EWB† ˚F | C5: Capacity Mbtuh | E5: Capacity Mbtuh | G5: Capacity Mbtuh | I5: Capacity Mbtuh | K5: Capacity Mbtuh | M5: Capacity Mbtuh | O5: Capacity Mbtuh
C6: Total | D6: Sens. | E6: Total | F6: Sens. | G6: Total | H6: Sens. | I6: Total | J6: Sens. | K6: Total | L6: Sens. | M6: Total | N6: Sens. | O6: Total | P6: Sens.
R7: Total Factors | Y7: Sens. % | AF7: IDB Adj | AM7: Sens Calc
A8: 75 | B8: 72 | C8: =R8*$I$17 -> 29.46566524 | D8: =IF(AM8>C8,C8,AM8) -> 11.98862661 | E8: =S8*$I$17 -> 28.07875536 | F8: =IF(AN8>E8,E8,AN8) -> 11.44570815 | G8: =T8*$I$17 -> 26.64248927 | H8: =IF(AO8>G8,G8,AO8) -> 10.88798283 | I8: =U8*$I$17 -> 25.1667382 | J8: =IF(AP8>I8,I8,AP8) -> 10.32038627 | K8: =V8*$I$17 -> 24.41899142 | L8: =IF(AQ8>K8,K8,AQ8) -> 10.03658798 | M8: =W8*$I$17 -> 23.67124464 | N8: =IF(AR8>M8,M8,AR8) -> 9.7527897 | O8: =X8*$I$17 -> 22.12145923 | P8: =IF(AS8>O8,O8,AS8) -> 9.165450644 | R8: 1.28111588 | S8: 1.220815451 | T8: 1.158369099 | U8: 1.094206009 | V8: 1.061695279 | W8: 1.029184549 | X8: 0.9618025751 | Y8: 0.4068676717 | Z8: 0.4076287573 | AA8: 0.4086698777 | AB8: 0.4100804079 | AC8: 0.4110156645 | AD8: 0.4120100083 | AE8: 0.4143239625 | AF8: 1 | AG8: 1 | AH8: 1 | AI8: 1 | AJ8: 1 | AK8: 1 | AL8: 1 | AM8: =Y8*C8*AF8 -> 11.98862661 | AN8: =Z8*E8*AG8 -> 11.44570815 | AO8: =AA8*G8*AH8 -> 10.88798283 | AP8: =AB8*I8*AI8 -> 10.32038627 | AQ8: =AC8*K8*AJ8 -> 10.03658798 | AR8: =AD8*M8*AK8 -> 9.7527897 | AS8: =AE8*O8*AL8 -> 9.165450644
B9: 67 | C9: 26.94849785 | D9: 15.43369099 | E9: 25.67017167 | F9: =IF(AN9>E9,E9,AN9) -> 14.82660944 | G9: 24.36223176 | H9: =IF(AO9>G9,G9,AO9) -> 14.21459227 | I9: 23.02467811 | J9: =IF(AP9>I9,I9,AP9) -> 13.59270386 | K9: 22.3361588 | L9: =IF(AQ9>K9,K9,AQ9) -> 13.27682403 | M9: 21.64763948 | N9: =IF(AR9>M9,M9,AR9) -> 12.96094421 | O9: 20.23111588 | P9: =IF(AS9>O9,O9,AS9) -> 12.31437768 | R9: 1.17167382 | S9: 1.116094421 | T9: 1.059227468 | U9: 1.001072961 | V9: 0.9711373391 | W9: 0.9412017167 | X9: 0.8796137339 | Y9: 0.5727106227 | Z9: 0.5775812344 | AA9: 0.5834683955 | AB9: 0.5903536977 | AC9: 0.5944094575 | AD9: 0.5987232102 | AE9: 0.6086850451 | AF9: 1 | AG9: 1 | AH9: 1 | AI9: 1 | AJ9: 1 | AK9: 1 | AL9: 1 | AM9: =Y9*C9*AF9 -> 15.43369099 | AN9: =Z9*E9*AG9 -> 14.82660944 | AO9: =AA9*G9*AH9 -> 14.21459227 | AP9: =AB9*I9*AI9 -> 13.59270386 | AQ9: =AC9*K9*AJ9 -> 13.27682403 | AR9: =AD9*M9*AK9 -> 12.96094421 | AS9: =AE9*O9*AL9 -> 12.31437768
B10: 63 | C10: 25.06309013 | D10: 18.12360515 | E10: 23.87360515 | F10: 17.472103 | G10: 22.65944206 | H10: 16.81566524 | I10: 21.40579399 | J10: 16.14935622 | K10: 20.76909871 | L10: 15.81373391 | M10: 20.13240343 | N10: 15.47811159 | O10: 18.8195279 | P10: 14.79206009 | R10: 1.089699571 | S10: 1.037982833 | T10: 0.985193133 | U10: 0.9306866953 | V10: 0.9030042918 | W10: 0.8753218884 | X10: 0.8182403433 | Y10: 0.7231193383 | Z10: 0.73185859 | AA10: 0.7421041168 | AB10: 0.754438552 | AC10: 0.7614068441 | AD10: 0.7688158862 | AE10: 0.7859952793 | AF10: 1 | AG10: 1 | AH10: 1 | AI10: 1 | AJ10: 1 | AK10: 1 | AL10: 1 | AM10: 18.12360515 | AN10: 17.472103 | AO10: 16.81566524 | AP10: 16.14935622 | AQ10: 15.81373391 | AR10: 15.47811159 | AS10: 14.79206009
B11: 57 | C11: 22.55579399 | D11: 22.00793991 | E11: 21.50944206 | F11: 21.26759657 | G11: 20.45815451 | H11: 20.45815451 | I11: 19.47596567 | J11: 19.47596567 | K11: 18.97006438 | L11: 18.97006438 | M11: 18.46416309 | N11: 18.46416309 | O11: 17.41781116 | P11: 17.41781116 | R11: 0.9806866953 | S11: 0.935193133 | T11: 0.8894849785 | U11: 0.8467811159 | V11: 0.8247854077 | W11: 0.8027896996 | X11: 0.7572961373 | Y11: 0.9757111597 | Z11: 0.9887563102 | AA11: 1 | AB11: 1 | AC11: 1 | AD11: 1 | AE11: 1 | AF11: 1 | AG11: 1 | AH11: 1 | AI11: 1 | AJ11: 1 | AK11: 1 | AL11: 1 | AM11: 22.00793991 | AN11: 21.26759657 | AO11: 20.45815451 | AP11: 19.47596567 | AQ11: 18.97006438 | AR11: 18.46416309 | AS11: 17.41781116
A12: 77.5 | B12: 72 | C12: 29.41137339 | D12: 13.66180258 | E12: 28.02199571 | F12: 13.0917382 | G12: 26.58819742 | H12: 12.50686695 | I12: 25.11244635 | J12: 11.91212446 | K12: 24.36469957 | L12: 11.61351931 | M12: 23.61695279 | N12: 11.31491416 | O12: 22.06716738 | P12: 10.70042918 | R12: 1.278755365 | S12: 1.218347639 | T12: 1.156008584 | U12: 1.091845494 | V12: 1.059334764 | W12: 1.026824034 | X12: 0.9594420601 | Y12: 0.4645074677 | Z12: 0.4671950683 | AA12: 0.4703916837 | AB12: 0.4743514151 | AC12: 0.4766534994 | AD12: 0.4791013584 | AE12: 0.4849027063 | AF12: 1 | AG12: 1 | AH12: 1 | AI12: 1 | AJ12: 1 | AK12: 1 | AL12: 1 | AM12: 13.66180258 | AN12: 13.0917382 | AO12: 12.50686695 | AP12: 11.91212446 | AQ12: 11.61351931 | AR12: 11.31491416 | AS12: 10.70042918
B13: 67 | C13: 26.91148069 | D13: 17.08959227 | E13: 25.63315451 | F13: 16.45783262 | G13: 24.32521459 | H13: 15.82113734 | I13: 23.01233906 | J13: 15.172103 | K13: 22.31148069 | L13: 14.84265021 | M13: 21.61062232 | N13: 14.51319742 | O13: 20.19409871 | P13: 13.84195279 | R13: 1.170064378 | S13: 1.114484979 | T13: 1.057618026 | U13: 1.000536481 | V13: 0.9700643777 | W13: 0.9395922747 | X13: 0.8780042918 | Y13: 0.6350298028 | Z13: 0.6420525657 | AA13: 0.6504007304 | AB13: 0.6593029491 | AC13: 0.6652472072 | AD13: 0.6715770241 | AE13: 0.6854454357 | AF13: 1 | AG13: 1 | AH13: 1 | AI13: 1 | AJ13: 1 | AK13: 1 | AL13: 1 | AM13: 17.08959227 | AN13: 16.45783262 | AO13: 15.82113734 | AP13: 15.172103 | AQ13: 14.84265021 | AR13: 14.51319742 | AS13: 13.84195279
B14: 63 | C14: 25.04334764 | D14: 19.772103 | E14: 23.85633047 | F14: 19.09592275 | G14: 22.64216738 | H14: 18.41579399 | I14: 21.39592275 | J14: 17.71641631 | K14: 20.76046137 | L14: 17.36598712 | M14: 20.125 | N14: 17.01555794 | O14: 18.8195279 | P14: 16.29495708 | R14: 1.088841202 | S14: 1.03723176 | T14: 0.9844420601 | U14: 0.9302575107 | V14: 0.9026287554 | W14: 0.875 | X14: 0.8182403433 | Y14: 0.7895151754 | Z14: 0.8004551567 | AA14: 0.8133405995 | AB14: 0.8280276817 | AC14: 0.8364933135 | AD14: 0.8454935622 | AE14: 0.8658536585 | AF14: 1 | AG14: 1 | AH14: 1 | AI14: 1 | AJ14: 1 | AK14: 1 | AL14: 1 | AM14: 19.772103 | AN14: 19.09592275 | AO14: 18.41579399 | AP14: 17.71641631 | AQ14: 17.36598712 | AR14: 17.01555794 | AS14: 16.29495708
B15: 57 | C15: 23.07896996 | D15: 22.80504292 | E15: 22.06716738 | F15: 21.94624464 | G15: 21.04055794 | H15: 21.04055794 | I15: 20.03369099 | J15: 20.03369099 | K15: 19.51791845 | L15: 19.51791845 | M15: 19.00214592 | N15: 19.00214592 | O15: 17.92864807 | P15: 17.92864807 | R15: 1.003433476 | S15: 0.9594420601 | T15: 0.914806867 | U15: 0.8710300429 | V15: 0.8486051502 | W15: 0.8261802575 | X15: 0.7795064378 | Y15: 0.9881308811 | Z15: 0.9945202416 | AA15: 1 | AB15: 1 | AC15: 1 | AD15: 1 | AE15: 1 | AF15: 1 | AG15: 1 | AH15: 1 | AI15: 1 | AJ15: 1 | AK15: 1 | AL15: 1 | AM15: 22.80504292 | AN15: 21.94624464 | AO15: 21.04055794 | AP15: 20.03369099 | AQ15: 19.51791845 | AR15: 19.00214592 | AS15: 17.92864807
A16: 80 | B16: 72 | C16: 29.35708155 | D16: 15.33497854 | E16: 27.96523605 | F16: 14.73776824 | G16: 26.53390558 | H16: 14.12575107 | I16: 25.05815451 | J16: 13.50386266 | K16: 24.31040773 | L16: 13.19045064 | M16: 23.56266094 | N16: 12.87703863 | O16: 22.01287554 | P16: 12.23540773 | R16: 1.27639485 | S16: 1.215879828 | T16: 1.153648069 | U16: 1.089484979 | V16: 1.056974249 | W16: 1.024463519 | X16: 0.9570815451 | Y16: 0.5223604573 | Z16: 0.5270031768 | AA16: 0.5323660714 | AB16: 0.5389009257 | AC16: 0.5425845092 | AD16: 0.5465018852 | AE16: 0.5558295964 | AF16: 1 | AG16: 1 | AH16: 1 | AI16: 1 | AJ16: 1 | AK16: 1 | AL16: 1 | AM16: 15.33497854 | AN16: 14.73776824 | AO16: 14.12575107 | AP16: 13.50386266 | AQ16: 13.19045064 | AR16: 12.87703863 | AS16: 12.23540773
B17: 67 | C17: 26.87446352 | D17: 18.74549356 | E17: 25.59613734 | F17: 18.08905579 | G17: 24.28819742 | H17: 17.4276824 | I17: 23 | J17: 16.75150215 | K17: 22.28680258 | L17: 16.40847639 | M17: 21.57360515 | N17: 16.06545064 | O17: 20.15708155 | P17: 15.3695279 | R17: 1.168454936 | S17: 1.112875536 | T17: 1.056008584 | U17: 1 | V17: 0.9689914163 | W17: 0.9379828326 | X17: 0.8763948498 | Y17: 0.6975206612 | Z17: 0.7067103741 | AA17: 0.717537086 | AB17: 0.7283261803 | AC17: 0.7362418337 | AD17: 0.7446808511 | AE17: 0.7624877571 | AF17: 1 | AG17: 1 | AH17: 1 | AI17: 1 | AJ17: 1 | AK17: 1 | AL17: 1 | AM17: 18.74549356 | AN17: 18.08905579 | AO17: 17.4276824 | AP17: 16.75150215 | AQ17: 16.40847639 | AR17: 16.06545064 | AS17: 15.3695279
B18: 63 | C18: 25.02360515 | D18: 21.42060086 | E18: 23.83905579 | F18: 20.71974249 | G18: 22.6248927 | H18: 20.01592275 | I18: =U18*$I$17 -> 21.3860515 | J18: 19.28347639 | K18: 20.75182403 | L18: 18.91824034 | M18: 20.11759657 | N18: 18.55300429 | O18: 18.8195279 | P18: 17.79785408 | R18: 1.087982833 | S18: 1.036480687 | T18: 0.9836909871 | U18: 0.9298283262 | V18: 0.9022532189 | W18: 0.8746781116 | X18: 0.8182403433 | Y18: 0.8560157791 | Z18: 0.8691511387 | AA18: 0.8846858639 | AB18: 0.901684745 | AC18: 0.911642288 | AD18: 0.9222276742 | AE18: 0.9457120378 | AF18: 1 | AG18: 1 | AH18: 1 | AI18: 1 | AJ18: 1 | AK18: 1 | AL18: 1 | AM18: 21.42060086 | AN18: 20.71974249 | AO18: 20.01592275 | AP18: 19.28347639 | AQ18: 18.91824034 | AR18: 18.55300429 | AS18: 17.79785408
B19: 57 | C19: 23.60214592 | D19: 23.60214592 | E19: 22.6248927 | F19: 22.6248927 | G19: 21.62296137 | H19: 21.62296137 | I19: =U19*$I$17 -> 20.59141631 | J19: 20.59141631 | K19: 20.06577253 | L19: 20.06577253 | M19: 19.54012876 | N19: 19.54012876 | O19: 18.43948498 | P19: 18.43948498 | R19: 1.026180258 | S19: 0.9836909871 | T19: 0.9401287554 | U19: 0.89527897 | V19: 0.8724248927 | W19: 0.8495708155 | X19: 0.8017167382 | Y19: 1 | Z19: 1 | AA19: 1 | AB19: 1 | AC19: 1 | AD19: 1 | AE19: 1 | AF19: 1 | AG19: 1 | AH19: 1 | AI19: 1 | AJ19: 1 | AK19: 1 | AL19: 1 | AM19: 23.60214592 | AN19: 22.6248927 | AO19: 21.62296137 | AP19: 20.59141631 | AQ19: 20.06577253 | AR19: 19.54012876 | AS19: 18.43948498

Sheet 24VNA9_60 (hidden)
A2: 24VNA9_60
A3: Evaporator Air Flow | C3: Condenser Entering Air Temperature ˚F
A4: 1600 | B4: CFM | C4: 65 | E4: 75 | G4: 85 | I4: 95 | K4: 100 | M4: 105 | O4: 115
A5: Evap. Air °F DB | B5: EWB† ˚F | C5: Capacity Mbtuh | E5: Capacity Mbtuh | G5: Capacity Mbtuh | I5: Capacity Mbtuh | K5: Capacity Mbtuh | M5: Capacity Mbtuh | O5: Capacity Mbtuh
C6: Total | D6: Sens. | E6: Total | F6: Sens. | G6: Total | H6: Sens. | I6: Total | J6: Sens. | K6: Total | L6: Sens. | M6: Total | N6: Sens. | O6: Total | P6: Sens.
R7: Total Factors | Y7: Sens. % | AF7: IDB Adj | AM7: Sens Calc
A8: 75 | B8: 72 | C8: =R8*$I$17 -> 29.29070175 | D8: =IF(AM8>C8,C8,AM8) -> 11.88736842 | E8: =S8*$I$17 -> 27.96315789 | F8: =IF(AN8>E8,E8,AN8) -> 11.36280702 | G8: =T8*$I$17 -> 26.6154386 | H8: =IF(AO8>G8,G8,AO8) -> 10.83824561 | I8: =U8*$I$17 -> 25.2354386 | J8: =IF(AP8>I8,I8,AP8) -> 10.30157895 | K8: =V8*$I$17 -> 24.52122807 | L8: =IF(AQ8>K8,K8,AQ8) -> 17.05429825 | M8: =W8*$I$17 -> 23.80701754 | N8: =IF(AR8>M8,M8,AR8) -> 23.80701754 | O8: =X8*$I$17 -> 22.34631579 | P8: =IF(AS8>O8,O8,AS8) -> 9.195964912 | R8: 1.273508772 | S8: 1.215789474 | T8: 1.157192982 | U8: 1.097192982 | V8: 1.066140351 | W8: 1.035087719 | X8: 0.9715789474 | Y8: 0.4058410249 | Z8: 0.4063492063 | AA8: 0.4072164948 | AB8: 0.40821874 | AC8: 0.6954911963 | AD8: 1 | AE8: 0.4115204045 | AF8: 1 | AG8: 1 | AH8: 1 | AI8: 1 | AJ8: 1 | AK8: 1 | AL8: 1 | AM8: =Y8*C8*AF8 -> 11.88736842 | AN8: =Z8*E8*AG8 -> 11.36280702 | AO8: =AA8*G8*AH8 -> 10.83824561 | AP8: =AB8*I8*AI8 -> 10.30157895 | AQ8: =AC8*K8*AJ8 -> 17.05429825 | AR8: =AD8*M8*AK8 -> 23.80701754 | AS8: =AE8*O8*AL8 -> 9.195964912
B9: 67 | C9: 26.71631579 | D9: 15.08315789 | E9: 25.52192982 | F9: =IF(AN9>E9,E9,AN9) -> 14.5222807 | G9: 24.29929825 | H9: =IF(AO9>G9,G9,AO9) -> 13.94929825 | I9: 23.04842105 | J9: =IF(AP9>I9,I9,AP9) -> 13.3722807 | K9: 22.40885965 | L9: =IF(AQ9>K9,K9,AQ9) -> 17.57078947 | M9: 21.76929825 | N9: =IF(AR9>M9,M9,AR9) -> 21.76929825 | O9: 20.42964912 | P9: =IF(AS9>O9,O9,AS9) -> 12.17789474 | R9: 1.161578947 | S9: 1.109649123 | T9: 1.056491228 | U9: 1.002105263 | V9: 0.9742982456 | W9: 0.9464912281 | X9: 0.888245614 | Y9: 0.5645672859 | Z9: 0.5690118577 | AA9: 0.5740617735 | AB9: 0.5801820728 | AC9: 0.784100117 | AD9: 1 | AE9: 0.5960892751 | AF9: 1 | AG9: 1 | AH9: 1 | AI9: 1 | AJ9: 1 | AK9: 1 | AL9: 1 | AM9: =Y9*C9*AF9 -> 15.08315789 | AN9: =Z9*E9*AG9 -> 14.5222807 | AO9: =AA9*G9*AH9 -> 13.94929825 | AP9: =AB9*I9*AI9 -> 13.3722807 | AQ9: =AC9*K9*AJ9 -> 17.57078947 | AR9: =AD9*M9*AK9 -> 21.76929825 | AS9: =AE9*O9*AL9 -> 12.17789474
B10: 63 | C10: 24.82385965 | D10: 17.58491228 | E10: 23.71824561 | F10: 16.99175439 | G10: 22.59245614 | H10: 16.39052632 | I10: 21.43842105 | J10: 15.78526316 | K10: 20.84324561 | L10: 18.01666667 | M10: 20.24807018 | N10: 20.24807018 | O10: 19.00929825 | P10: 14.52631579 | R10: 1.079298246 | S10: 1.03122807 | T10: 0.9822807018 | U10: 0.9321052632 | V10: 0.9062280702 | W10: 0.8803508772 | X10: 0.8264912281 | Y10: 0.7083875163 | Z10: 0.7164001361 | AA10: 0.7254866941 | AB10: 0.7363071711 | AC10: 0.8643887329 | AD10: 1 | AE10: 0.7641689662 | AF10: 1 | AG10: 1 | AH10: 1 | AI10: 1 | AJ10: 1 | AK10: 1 | AL10: 1 | AM10: 17.58491228 | AN10: 16.99175439 | AO10: 16.39052632 | AP10: 15.78526316 | AQ10: 18.01666667 | AR10: 20.24807018 | AS10: 14.52631579
B11: 57 | C11: 22.29789474 | D11: 21.23263158 | E11: 21.32947368 | F11: 20.58298246 | G11: 20.35298246 | H11: 19.92122807 | I11: 19.35631579 | J11: 19.21912281 | K11: 18.86807018 | L11: 18.79947368 | M11: 18.37982456 | N11: 18.37982456 | O11: 17.4154386 | P11: 17.4154386 | R11: 0.9694736842 | S11: 0.9273684211 | T11: 0.8849122807 | U11: 0.8415789474 | V11: 0.8203508772 | W11: 0.799122807 | X11: 0.7571929825 | Y11: 0.9522258415 | Z11: 0.9650018918 | AA11: 0.9787866772 | AB11: 0.9929122368 | AC11: 0.996364414 | AD11: 1 | AE11: 1 | AF11: 1 | AG11: 1 | AH11: 1 | AI11: 1 | AJ11: 1 | AK11: 1 | AL11: 1 | AM11: 21.23263158 | AN11: 20.58298246 | AO11: 19.92122807 | AP11: 19.21912281 | AQ11: 18.79947368 | AR11: 18.37982456 | AS11: 17.4154386
A12: 77.5 | B12: 72 | C12: 29.2604386 | D12: 13.46105263 | E12: 27.93289474 | F12: 12.91429825 | G12: 26.58719298 | H12: 12.36754386 | I12: 25.20719298 | J12: 11.80868421 | K12: 24.49298246 | L12: 17.79372807 | M12: 23.77877193 | N12: 23.77877193 | O12: 22.31807018 | P12: 10.65868421 | R12: 1.272192982 | S12: 1.214473684 | T12: 1.155964912 | U12: 1.095964912 | V12: 1.064912281 | W12: 1.033859649 | X12: 0.9703508772 | Y12: 0.4600427498 | Z12: 0.4623329722 | AA12: 0.4651692214 | AB12: 0.4684648631 | AC12: 0.7264827018 | AD12: 1 | AE12: 0.4775809076 | AF12: 1 | AG12: 1 | AH12: 1 | AI12: 1 | AJ12: 1 | AK12: 1 | AL12: 1 | AM12: 13.46105263 | AN12: 12.91429825 | AO12: 12.36754386 | AP12: 11.80868421 | AQ12: 17.79372807 | AR12: 23.77877193 | AS12: 10.65868421
B13: 67 | C13: 26.69412281 | D13: 16.63666667 | E13: 25.4977193 | F13: 16.05561404 | G13: 24.27508772 | H13: 15.46245614 | I13: 23.02421053 | J13: 14.86324561 | K13: 22.38464912 | L13: 18.30416667 | M13: 21.74508772 | N13: 21.74508772 | O13: 20.40342105 | P13: 13.62850877 | R13: 1.160614035 | S13: 1.108596491 | T13: 1.055438596 | U13: 1.001052632 | V13: 0.973245614 | W13: 0.9454385965 | X13: 0.8871052632 | Y13: 0.6232333157 | Z13: 0.6296882418 | AA13: 0.6369680851 | AB13: 0.6455485454 | AC13: 0.8177106805 | AD13: 1 | AE13: 0.6679521408 | AF13: 1 | AG13: 1 | AH13: 1 | AI13: 1 | AJ13: 1 | AK13: 1 | AL13: 1 | AM13: 16.63666667 | AN13: 16.05561404 | AO13: 15.46245614 | AP13: 14.86324561 | AQ13: 18.30416667 | AR13: 21.74508772 | AS13: 13.62850877
B14: 63 | C14: 24.8077193 | D14: 19.13236842 | E14: 23.70210526 | F14: 18.51701754 | G14: 22.57631579 | H14: 17.89561404 | I14: 21.42631579 | J14: 17.26614035 | K14: 20.83214912 | L14: 18.7520614 | M14: 20.23798246 | N14: 20.23798246 | O14: 19.00526316 | P14: 15.95877193 | R14: 1.078596491 | S14: 1.030526316 | T14: 0.9815789474 | U14: 0.9315789474 | V14: 0.905745614 | W14: 0.8799122807 | X14: 0.8263157895 | Y14: 0.7712264151 | Z14: 0.7812393599 | AA14: 0.7926720286 | AB14: 0.8058380414 | AC14: 0.9001501138 | AD14: 1 | AE14: 0.8397027601 | AF14: 1 | AG14: 1 | AH14: 1 | AI14: 1 | AJ14: 1 | AK14: 1 | AL14: 1 | AM14: 19.13236842 | AN14: 18.51701754 | AO14: 17.89561404 | AP14: 17.26614035 | AQ14: 18.7520614 | AR14: 20.23798246 | AS14: 15.95877193
B15: 57 | C15: 22.69736842 | D15: 22.16473684 | E15: 21.77333333 | F15: 21.40008772 | G15: 20.83517544 | H15: 20.61929825 | I15: 19.86877193 | J15: 19.80017544 | K15: 19.38355263 | L15: 19.34925439 | M15: 18.89833333 | N15: 18.89833333 | O15: 17.91175439 | P15: 17.91175439 | R15: 0.9868421053 | S15: 0.9466666667 | T15: 0.905877193 | U15: 0.8638596491 | V15: 0.8427631579 | W15: 0.8216666667 | X15: 0.7787719298 | Y15: 0.9765333333 | Z15: 0.9828576723 | AA15: 0.9896388109 | AB15: 0.9965475223 | AC15: 0.9982305491 | AD15: 1 | AE15: 1 | AF15: 1 | AG15: 1 | AH15: 1 | AI15: 1 | AJ15: 1 | AK15: 1 | AL15: 1 | AM15: 22.16473684 | AN15: 21.40008772 | AO15: 20.61929825 | AP15: 19.80017544 | AQ15: 19.34925439 | AR15: 18.89833333 | AS15: 17.91175439
A16: 80 | B16: 72 | C16: 29.23017544 | D16: 15.03473684 | E16: 27.90263158 | F16: 14.46578947 | G16: 26.55894737 | H16: 13.89684211 | I16: 25.17894737 | J16: 13.31578947 | K16: 24.46473684 | L16: 18.53315789 | M16: 23.75052632 | N16: 23.75052632 | O16: 22.28982456 | P16: 12.12140351 | R16: 1.270877193 | S16: 1.213157895 | T16: 1.154736842 | U16: 1.094736842 | V16: 1.063684211 | W16: 1.032631579 | X16: 0.969122807 | Y16: 0.514356709 | Z16: 0.5184381779 | AA16: 0.5232452142 | AB16: 0.5288461538 | AC16: 0.7575457694 | AD16: 1 | AE16: 0.5438088342 | AF16: 1 | AG16: 1 | AH16: 1 | AI16: 1 | AJ16: 1 | AK16: 1 | AL16: 1 | AM16: 15.03473684 | AN16: 14.46578947 | AO16: 13.89684211 | AP16: 13.31578947 | AQ16: 18.53315789 | AR16: 23.75052632 | AS16: 12.12140351
B17: 67 | C17: 26.67192982 | D17: 18.19017544 | E17: 25.47350877 | F17: 17.58894737 | G17: 24.25087719 | H17: 16.97561404 | I17: 23 | J17: 16.35421053 | K17: 22.3604386 | L17: 19.03754386 | M17: 21.72087719 | N17: 21.72087719 | O17: 20.37719298 | P17: 15.07912281 | R17: 1.159649123 | S17: 1.10754386 | T17: 1.054385965 | U17: 1 | V17: 0.9721929825 | W17: 0.9443859649 | X17: 0.8859649123 | Y17: 0.6819969743 | Z17: 0.690479962 | AA17: 0.7 | AB17: 0.7110526316 | AC17: 0.8513940269 | AD17: 1 | AE17: 0.74 | AF17: 1 | AG17: 1 | AH17: 1 | AI17: 1 | AJ17: 1 | AK17: 1 | AL17: 1 | AM17: 18.19017544 | AN17: 17.58894737 | AO17: 16.97561404 | AP17: 16.35421053 | AQ17: 19.03754386 | AR17: 21.72087719 | AS17: 15.07912281
B18: 63 | C18: 24.79157895 | D18: 20.67982456 | E18: 23.68596491 | F18: 20.0422807 | G18: 22.56017544 | H18: 19.40070175 | I18: =U18*$I$17 -> 21.41421053 | J18: 18.74701754 | K18: 20.82105263 | L18: 19.48745614 | M18: 20.22789474 | N18: 20.22789474 | O18: 19.00122807 | P18: 17.39122807 | R18: 1.077894737 | S18: 1.029824561 | T18: 0.980877193 | U18: 0.9310526316 | V18: 0.9052631579 | W18: 0.8794736842 | X18: 0.8261403509 | Y18: 0.8341471354 | Z18: 0.8461669506 | AA18: 0.8599534967 | AB18: 0.8754475221 | AC18: 0.9359496124 | AD18: 1 | AE18: 0.9152686345 | AF18: 1 | AG18: 1 | AH18: 1 | AI18: 1 | AJ18: 1 | AK18: 1 | AL18: 1 | AM18: 20.67982456 | AN18: 20.0422807 | AO18: 19.40070175 | AP18: 18.74701754 | AQ18: 19.48745614 | AR18: 20.22789474 | AS18: 17.39122807
B19: 57 | C19: 23.09684211 | D19: 23.09684211 | E19: 22.21719298 | F19: 22.21719298 | G19: 21.31736842 | H19: 21.31736842 | I19: =U19*$I$17 -> 20.38122807 | J19: 20.38122807 | K19: 19.89903509 | L19: 19.89903509 | M19: 19.41684211 | N19: 19.41684211 | O19: 18.40807018 | P19: 18.40807018 | R19: 1.004210526 | S19: 0.9659649123 | T19: 0.9268421053 | U19: 0.8861403509 | V19: 0.8651754386 | W19: 0.8442105263 | X19: 0.8003508772 | Y19: 1 | Z19: 1 | AA19: 1 | AB19: 1 | AC19: 1 | AD19: 1 | AE19: 1 | AF19: 1 | AG19: 1 | AH19: 1 | AI19: 1 | AJ19: 1 | AK19: 1 | AL19: 1 | AM19: 23.09684211 | AN19: 22.21719298 | AO19: 21.31736842 | AP19: 20.38122807 | AQ19: 19.89903509 | AR19: 19.41684211 | AS19: 18.40807018

Sheet Form (hidden)
C2: Select Carrier Condenser: | K2: Efficiency Mode / Stage 5
C3: ADP Evaporator: | N3: 24
C4: Nominal Capacity: | E4: (Mbtuh) | F4: Note: 23 = 24A / 24 = 24B | L4: Condenser Entering Air Temperature: | N4: (°F) Dry Bulb, 65°F to 115°F
C5: AHRI Rated Capacity: | E5: (Mbtuh) @ 95 ˚F & 80/67 ˚F conditions | L5: Entering Evaporator Air (DB): | O5: to | Q5: (°F) Dry Bulb -- 80°F Standard
C6: Evaporator Air Flow (CFM): | D6: Fixed by OEM data | L6: Entering Evaporator Air (WB): | N6: (°F) Wet Bulb, 57°F to 72°F
N7: 48
N8: CFM
A14: Extended Ratings
F18: Carrier Condenser :
F19: ADP Evaporator:
F20: Condenser Entering Air Temperature: | H20: (°F) Dry Bulb, 65°F to 115°F
F21: Entering Evaporator Air (DB): | H21: (°F) Dry Bulb, 75°F to 80°F
F22: Evaporator Air Flow: | H22: CFM (Fixed by OEM data)
F23: Entering Evaporator Air (WB): | H23: (°F) Wet Bulb, 57°F to 72°F
F24: AHRI Rated Capacity: | H24: (Mbtuh) @ 95 ˚F & 80/67 ˚F conditions
A26: Evaporator Air Flow | C26: Condenser Entering Air Temperature ˚F
A27: 825 | B27: CFM | C27: 65 | E27: 75 | G27: 85 | I27: 95 | K27: 100 | M27: 105 | O27: 115
A28: Evap. Air °F DB | B28: EWB† ˚F | C28: Capacity Mbtuh | E28: Capacity Mbtuh | G28: Capacity Mbtuh | I28: Capacity Mbtuh | K28: Capacity Mbtuh | M28: Capacity Mbtuh | O28: Capacity Mbtuh
C29: Total | D29: Sens. | E29: Total | F29: Sens. | G29: Total | H29: Sens. | I29: Total | J29: Sens. | K29: Total | L29: Sens. | M29: Total | N29: Sens. | O29: Total | P29: Sens.
D44: Condenser Entering Air Temperature: | F44: (°F) Dry Bulb, 65°F to 115°F | J44: CAPACITY IN MBTUH UNDER SPECIFIC CONDITIONS LISTED
D45: Entering Evaporator Air (DB): | F45: (°F) Dry Bulb, 75°F to 80°F | K45: TOTAL
D46: Entering Evaporator Air (WB): | F46: (°F) Wet Bulb, 57°F to 72°F | K46: SENSIBLE
M47: Efficiency Mode / Stage 5
A48: Notes: | B48: † Entering Wet Bulb
B49: Extended ratings are not certified. They are calculated based upon typical condenser performance curves and are for engineering information only.
B50: When the required data fall between the published data, interpolation may be performed. Extrapolation is not an acceptable practice.
A53: Printed: | P53: CV-19-A

Sheet Instructions (hidden)
B7: This spreadsheet generates capacity information for ADP rated matches at other than nominal conditions.
B8: The information is provided is not certified and is provided for engineering use only.
B10: The latest version will always be available at: www.adpnow.com/extratings/
B12: In order to generate an extended rating, you will need the following information:
C13: Condenser model number
C14: ADP coil model number
C15: Nominal capacity
C16: Rated capacity (from AHRI database)
C17: Condenser entering air dry bulb temperature
C18: Indoor entering air dry bulb temperature
C19: Indoor entering air wet bulb temperature
C20: Indoor airflow
B22: Select the condenser series and nominal tonnage form the drop down lists.
B23: Enter the remaining information in the correct cells. Note there are limits on the range of values allowed.
B24: Click on "Calculate" to calculate the extended ratings.
B25: The table will show capacities for various conditions. The capacities at the specific design point are
B26: at the bottom of the page.
B27: From this point you may:
C28: Click "Clear" to clear the form and start over.
C29: Click "Print" to print a copy of the data.
C30: Click "Copy" to copy the data to a new spreadsheet and save it in the same directory.
B36: Versions: | C36: CV-15-A | D36: 2015-05-18 | E36: Initial public release
C37: CV-16-A | D37: 2016-03-22 | E37: Renewed date key through 2016
C38: CV-19-A | D38: 2019-05-20 | E38: New version

Sheet Prompt
B6: In order to use this spreadsheet,
B7: Please enable Macros in your security settings.
B9: Enabling Macros in Excel 2007
B10: 1. In Excel, click the Office button in the upper left corner of the screen.
B11: 2. Click the "Excel Options" button in the lower right.
B12: 3. Click the "Trust Center" button on the left. Then, at the bottom right, select "Trust Center Settings" as shown below.
B13: 4. In the next window, select "Macro Settings," then select the radio button for "Disable all macros with notification."
B14: 5. When openning this spreadsheet, you will see a warning like this in the menu bar:
B17: 6. Select "Enable this content" and click "Okay". The spreadsheet will now be functional.

Sheet Sheet1 (hidden)
